Workbook

Sheet Navigation
K7: Mahesh Agro Serv.Centre
L8: Stock and Sales FOR THE PERIOD 01-Jan-2020 TO 31-Mar-2020

Sheet Dealer Report
A1: Mahesh Agro Service Centre Deoli(2018)
A2: Naharu Market Deoli
A3: Bayer Crop.(Pestiside)
A4: Stock Summary
A5: 1-Jan-2020 to 31-Mar-2020
B6: Bayer Crop.(Pestiside)
B7: Mahesh Agro Service Centre Deoli(2018)
A8: Particulars | B8: 1-Jan-2020 to 31-Mar-2020
B9: Opening Balance | C9: Inwards | D9: Outwards | E9: Closing Balance
B10: Quantity | C10: Quantity | D10: Quantity | E10: Quantity
A11: Admire WG70 2GM (Bayer) | B11: 880 | D11: 362 | E11: 518
A12: Admire WG70 30GM (Bayer) | B12: 147 | D12: 26 | E12: 121
A13: Aliette WP80% 100Gm (Bayer) | B13: 105 | D13: 4 | E13: 101
A14: Aliette WP80% 1Kg (Bayer)
A15: Aliette WP 80% 250Gm(Bayer) | B15: 27 | D15: 3 | E15: 24
A16: Antracol(T)WP70 100Gm (Bayer) | B16: 240 | D16: 122 | E16: 118
A17: Antracol(T)WP70 1kg (Bayer)
A18: Antracol(T) WP70 250gm (Bayer) | B18: 129 | C18: 40 | D18: 131 | E18: 38
A19: Antracol(T)WP 70 500 Gm (Bayer) | B19: 179 | D19: 103 | E19: 76
A20: Belt Expert SC 100Ml Bot.(Bayer) | B20: 2650 | C20: -2550 | D20: 100
A21: Confidor(T)SL- 100ML Bot (Bayer) | B21: 44 | D21: 20 | E21: 24
A22: Confidor(T)SL- 250ML Bot (Bayer) | B22: 28 | D22: 0.75 | E22: 27.25
A23: Confidor(T)SL- 500ml Bot (Bayer) | B23: 50 | D23: 16 | E23: 34
A24: Confidor(T)SL- 50ml Bot (Bayer) | B24: 200 | D24: 94 | E24: 106
A25: Decis EC 28% 1 Lt Bot (Bayer) | B25: 6 | D25: 2 | E25: 4
A26: Decis EC 28% 250Ml Bot(Bayer) | B26: 27 | D26: 3 | E26: 24
A27: Decis EC 28% 500Ml Bot(Bayer) | B27: 20 | D27: 17 | E27: 3
A28: Evergol Xtend 100 Ml (Bayer) | B28: 71 | D28: 1 | E28: 70
A29: Evergol Xtend 40 Ml (Bayer) | B29: 543 | D29: 61 | E29: 482
A30: Fame (T) Sc 100ml (Bayer) | B30: 205 | C30: -100 | D30: 90 | E30: 15
A31: Fame (T) SC 10 Ml (Bayer)
A32: Fame (T) Sc 250ml (Bayer) | B32: 112 | C32: -56 | D32: 43 | E32: 13
A33: Fame(T)Sc 50ml (Bayer) | B33: 24 | D33: 21 | E33: 3
A34: Fipronil 0.3% GR 5kg (Bayer) | B34: 5 | D34: 5
A35: Fipronil 5% SC 500ml (Bayer) | B35: 30 | D35: 30
A36: Folicur EC 1 LTR(Bayer)
A37: Folicur EC250 100Ml BOT(Bayer) | B37: 95 | D37: 70 | E37: 25
A38: Folicur EC250 250Ml BOT(Bayer) | B38: 2 | E38: 2
A39: Foost WP50 -250Gm (Bayer)
A40: Foost WP50 -500Gm (Bayer) | B40: 1425 | E40: 1425
A41: Gauchoo 100Ml (Bayer) | B41: 453 | D41: 271 | E41: 182
A42: Gauchoo 1 Lt (Bayer) | B42: 170 | E42: 170
A43: Gauchoo 250Ml (Bayer) | B43: 370 | D43: 9 | E43: 361
A44: Gauchoo 50Ml (Bayer) | B44: 532 | D44: 5 | E44: 527
A45: Gauchoo 5 Lt (Bayer) | B45: 8 | E45: 8
A46: Infinito SC 100ML Bot(Bayer) | B46: 100 | D46: 100
A47: Infinito SC 500ML Bot(Bayer) | B47: 39 | D47: 20 | E47: 19
A48: Jump 2 Gm (BAYER) | B48: 6232 | D48: 702 | E48: 5530
A49: Larvin WP75- 100Gm (Bayer) | B49: 20 | E49: 20
A50: Larvin WP75- 250Gm (Bayer) | B50: 47 | E50: 47
A51: Larvin WP75- 500Gm (Bayer) | B51: 34 | E51: 34
A52: Laudis SC630- 115Ml Bot (Bayer) | B52: 24 | E52: 24
A53: Laudis SC630- 57.5Ml Bot (Bayer) | B53: 7 | E53: 7
A54: Lauduis SC630 - 230ml (Bayer) | B54: 3 | E54: 3
A55: Lesenta WG80 - 40Gm(Bayer) | B55: 94 | D55: 3 | E55: 91
A56: Luna Experience SC400- 100Ml(Bayer) | B56: 300 | D56: 200 | E56: 100
A57: Luna Experience SC400- 250Ml(Bayer) | B57: 348 | D57: 126 | E57: 222
A58: Movento Energy 100 Ml (Bayer) | B58: 50 | D58: 50
A59: Movento Energy- 250Ml (Bayer) | B59: 55 | D59: 49 | E59: 6
A60: Nativo WG75- 100Gm (Bayer) | B60: 184 | D60: 184
A61: Nativo WG75 - 1kg (Bayer)
A62: Nativo WG75- 250Gm (Bayer) | B62: 130 | D62: 88 | E62: 42
A63: Nativo WG75- 500Gm (Bayer) | B63: 8 | E63: 8
A64: Nativo WG75- 50Gm (Bayer) | B64: 248 | D64: 151 | E64: 97
A65: Oberon SC- 100Ml (Bayer) | B65: 125 | D65: 7 | E65: 118
A66: Oberon SC- 200Ml (Bayer) | B66: 154 | D66: 70 | E66: 84
A67: Planofix 100 Ml (Bayer) | B67: 25.1 | D67: 18.1 | E67: 7
A68: PPE Full Set (Bayer) | B68: 10 | E68: 10
A69: PPE Mini Kit (Bayer) | B69: 60 | E69: 60
A70: Raft EC 1lt (Bayer) | B70: 5 | E70: 5
A71: Raft EC 60% 250ml (Bayer) | B71: 15 | E71: 15
A72: Raft EC 60% 500ml (Bayer)
A73: Regent GR0-3- 1Kg (Bayer) | B73: 487 | D73: 51 | E73: 436
A74: Regent GR0-3 5kg (Bayer) | B74: 158 | D74: 17 | E74: 141
A75: Regent SC50- 100Ml BOT (Bayer) | B75: -407 | D75: 14 | E75: -421
A76: Regent SC50 - 1Ltr(Bayer) | B76: 4 | E76: 4
A77: Regent SC50- 250Ml BOT (Bayer) | B77: 31 | D77: 29 | E77: 2
A78: Regent SC50 500Ml Bot (Bayer) | B78: 186 | D78: 30 | E78: 156
A79: Sencor WP70% 100Gm (Bayer)
A80: Solomon OD300- 100Ml(Bayer) | B80: 26 | D80: 18 | E80: 8
A81: Solomon OD300- 250Ml(Bayer) | B81: 24 | D81: 1 | E81: 23
A82: Spintor SC-75ml (Bayer)
A83: Sunrice WG15 50Gm Bot(Bayer)
A84: Velum Prime SC400 - 250Ml Bot.(Bayer) | B84: 62 | D84: -33 | E84: 95
A85: Velum Prime SC400 - 500Ml Bot.(Bayer) | B85: 140 | E85: 140
A86: Whip Super(T)EC90- 250Ml(Bayer) | B86: 25 | E86: 25
A87: Bajra (9001) 1.5Kg (Bayer) | B87: 228 | D87: 228
A88: Bajra (9180 LOC) 1.5Kg (Bayer)
A89: Bajra (9444) 1.5Kg (Bayer) | B89: 4 | D89: 4
A90: Bajra (9450) 1.5Kg (Bayer) | B90: -15 | C90: 228 | E90: 213
A91: Bajra (9450) - 4.5Kg (Bayer)
A92: Bitter Gaurd 500 Seeds 61 Gm (Bayer)
A93: B.T.Cotton 7007BG 2-450Gm(Bayer)
A94: B.T.Cotton 7172BG 2-450Gm(Bayer) | B94: 4 | D94: 4
A95: Mustard 5222 - 1 Kg (Bayer) | B95: 3 | D95: 3
A96: Mustard PA5210 - 1kg (Bayer) | B96: 91 | E96: 91
A97: total | B97: =SUM(B11:B96) -> 18145.1 | C97: -2438 | D97: 3743.85 | E97: 11963.25

Sheet Dealer Report working
A1: Particulars | B1: Opening Qty | C1: Purchase Qty | D1: Sales Qty | E1: CLSG | F1: Master Name | K1: Values
A2: Admire WG70 2GM (Bayer) | B2: 880 | D2: 362 | E2: 518 | F2: ADMIRE WG70 125X(8X2GR) BAG IN | J2: Row Labels | K2: Sum of Opening Qty | L2: Sum of Purchase Qty | M2: Sum of Sales Qty | N2: Sum of CLSG
A3: Admire WG70 30GM (Bayer) | B3: 147 | D3: 26 | E3: 121 | F3: ADMIRE (T) WG70 150X30GR BOT IN | J3: ADMIRE (T) WG70 150X30GR BOT IN | K3: 147 | M3: 26 | N3: 121
A4: Aliette WP80% 100Gm (Bayer) | B4: 105 | D4: 4 | E4: 101 | F4: ALIETTE WP80 40X100GR BAG IN | J4: ADMIRE WG70 125X(8X2GR) BAG IN | K4: 880 | M4: 362 | N4: 518
A5: Aliette WP80% 1Kg (Bayer) | F5: ALIETTE WP80 10X1KG BAG IN | J5: ALIETTE WP80 10X1KG BAG IN
A6: Aliette WP 80% 250Gm(Bayer) | B6: 27 | D6: 3 | E6: 24 | F6: ALIETTE WP80 20X250GR BAG IN | J6: ALIETTE WP80 20X250GR BAG IN | K6: 27 | M6: 3 | N6: 24
A7: Antracol(T)WP70 100Gm (Bayer) | B7: 240 | D7: 122 | E7: 118 | F7: ANTRACOL (T) WP70 50X100GR BAG IN | J7: ALIETTE WP80 40X100GR BAG IN | K7: 105 | M7: 4 | N7: 101
A8: Antracol(T)WP70 1kg (Bayer) | F8: ANTRACOL (T) WP70 10X1KG BAG IN | J8: ANTRACOL (T) WP70 10X1KG BAG IN
A9: Antracol(T) WP70 250gm (Bayer) | B9: 129 | C9: 40 | D9: 131 | E9: 38 | F9: ANTRACOL (T) WP70 40X250GR BAG IN | J9: ANTRACOL (T) WP70 20X500GR BAG IN | K9: 179 | M9: 103 | N9: 76
A10: Antracol(T)WP 70 500 Gm (Bayer) | B10: 179 | D10: 103 | E10: 76 | F10: ANTRACOL (T) WP70 20X500GR BAG IN | J10: ANTRACOL (T) WP70 40X250GR BAG IN | K10: 129 | L10: 40 | M10: 131 | N10: 38
A11: Belt Expert SC 100Ml Bot.(Bayer) | B11: 2650 | C11: -2550 | D11: 100 | F11: BELT EXPERT SC480 50X100ML BOT IN | J11: ANTRACOL (T) WP70 50X100GR BAG IN | K11: 240 | M11: 122 | N11: 118
A12: Confidor(T)SL- 100ML Bot (Bayer) | B12: 44 | D12: 20 | E12: 24 | F12: CONFIDOR (T) SL200 50X100ML BOT IN | J12: BELT EXPERT SC480 50X100ML BOT IN | K12: 2650 | L12: -2550 | M12: 100
A13: Confidor(T)SL- 250ML Bot (Bayer) | B13: 28 | D13: 0.75 | E13: 27.25 | F13: CONFIDOR (T) SL200 20X250ML BOT IN | J13: CONFIDOR (T) SL200 100X50ML BOT IN | K13: 200 | M13: 94 | N13: 106
A14: Confidor(T)SL- 500ml Bot (Bayer) | B14: 50 | D14: 16 | E14: 34 | F14: CONFIDOR (T) SL200 20X500ML BOT IN | J14: CONFIDOR (T) SL200 20X250ML BOT IN | K14: 28 | M14: 0.75 | N14: 27.25
A15: Confidor(T)SL- 50ml Bot (Bayer) | B15: 200 | D15: 94 | E15: 106 | F15: CONFIDOR (T) SL200 100X50ML BOT IN | J15: CONFIDOR (T) SL200 20X500ML BOT IN | K15: 50 | M15: 16 | N15: 34
A16: Decis EC 28% 1 Lt Bot (Bayer) | B16: 6 | D16: 2 | E16: 4 | F16: DECIS EC 28 10X1L BOT IN | J16: CONFIDOR (T) SL200 50X100ML BOT IN | K16: 44 | M16: 20 | N16: 24
A17: Decis EC 28% 250Ml Bot(Bayer) | B17: 27 | D17: 3 | E17: 24 | F17: DECIS EC 28 40X250ML BOT IN | J17: DECIS EC 28 10X1L BOT IN | K17: 6 | M17: 2 | N17: 4
A18: Decis EC 28% 500Ml Bot(Bayer) | B18: 20 | D18: 17 | E18: 3 | F18: DECIS EC 28 20X500ML BOT IN | J18: DECIS EC 28 20X500ML BOT IN | K18: 20 | M18: 17 | N18: 3
A19: Evergol Xtend 100 Ml (Bayer) | B19: 71 | D19: 1 | E19: 70 | F19: EVERGOL XTEND FS308 50X100ML BOT IN | J19: DECIS EC 28 40X250ML BOT IN | K19: 27 | M19: 3 | N19: 24
A20: Evergol Xtend 40 Ml (Bayer) | B20: 543 | D20: 61 | E20: 482 | F20: EVERGOL XTEND FS308 100X40ML BOT IN | J20: DISCOUNTINUE PRODUCT | K20: 70 | N20: 70
A21: Fame (T) Sc 100ml (Bayer) | B21: 205 | C21: -100 | D21: 90 | E21: 15 | F21: FAME (T) SC480 20X100ML BOT IN | J21: EVERGOL XTEND FS308 100X40ML BOT IN | K21: 543 | M21: 61 | N21: 482
A22: Fame (T) SC 10 Ml (Bayer) | F22: FAME (T) SC480 10X(20X10ML) BOT IN | J22: EVERGOL XTEND FS308 50X100ML BOT IN | K22: 71 | M22: 1 | N22: 70
A23: Fame (T) Sc 250ml (Bayer) | B23: 112 | C23: -56 | D23: 43 | E23: 13 | F23: FAME (T) SC480 8X250ML BOT IN | J23: FAME (T) SC480 10X(20X10ML) BOT IN
A24: Fame(T)Sc 50ml (Bayer) | B24: 24 | D24: 21 | E24: 3 | F24: FAME (T) SC480 40X50ML BOT IN | J24: FAME (T) SC480 20X100ML BOT IN | K24: 205 | L24: -100 | M24: 90 | N24: 15
A25: Fipronil 0.3% GR 5kg (Bayer) | B25: 5 | D25: 5 | F25: REGENT GR0 3 4X5KG BAG IN | J25: FAME (T) SC480 40X50ML BOT IN | K25: 24 | M25: 21 | N25: 3
A26: Fipronil 5% SC 500ml (Bayer) | B26: 30 | D26: 30 | F26: REGENT (T) SC50 20X500ML BOT IN | J26: FAME (T) SC480 8X250ML BOT IN | K26: 112 | L26: -56 | M26: 43 | N26: 13
A27: Folicur EC 1 LTR(Bayer) | F27: FOLICUR (T) EC250 10X1L BOT IN | J27: FOLICUR (T) EC250 10X1L BOT IN
A28: Folicur EC250 100Ml BOT(Bayer) | B28: 95 | D28: 70 | E28: 25 | F28: FOLICUR (T) EC250 50X100ML BOT IN | J28: FOLICUR (T) EC250 40X250ML BOT IN | K28: 2 | N28: 2
A29: Folicur EC250 250Ml BOT(Bayer) | B29: 2 | E29: 2 | F29: FOLICUR (T) EC250 40X250ML BOT IN | J29: FOLICUR (T) EC250 50X100ML BOT IN | K29: 95 | M29: 70 | N29: 25
A30: Foost WP50 -250Gm (Bayer) | F30: FOOST WP50 20X250G BAG IN | J30: FOOST WP50 20X250G BAG IN
A31: Foost WP50 -500Gm (Bayer) | B31: 1425 | E31: 1425 | F31: FOOST WP50 24X500G BAG IN | J31: FOOST WP50 24X500G BAG IN | K31: 1425 | N31: 1425
A32: Gauchoo 100Ml (Bayer) | B32: 453 | D32: 271 | E32: 182 | F32: GAUCHO FS600 50X100ML BOT IN | J32: GAUCHO FS600 100X50ML BOT IN | K32: 532 | M32: 5 | N32: 527
A33: Gauchoo 1 Lt (Bayer) | B33: 170 | E33: 170 | F33: GAUCHO FS600 2X(5X1L) BOT IN | J33: GAUCHO FS600 2X(5X1L) BOT IN | K33: 170 | N33: 170
A34: Gauchoo 250Ml (Bayer) | B34: 370 | D34: 9 | E34: 361 | F34: GAUCHO FS600 40X250ML BOT IN | J34: GAUCHO FS600 2X5L BOT IN | K34: 8 | N34: 8
A35: Gauchoo 50Ml (Bayer) | B35: 532 | D35: 5 | E35: 527 | F35: GAUCHO FS600 100X50ML BOT IN | J35: GAUCHO FS600 40X250ML BOT IN | K35: 370 | M35: 9 | N35: 361
A36: Gauchoo 5 Lt (Bayer) | B36: 8 | E36: 8 | F36: GAUCHO FS600 2X5L BOT IN | J36: GAUCHO FS600 50X100ML BOT IN | K36: 453 | M36: 271 | N36: 182
A37: Infinito SC 100ML Bot(Bayer) | B37: 100 | D37: 100 | F37: INFINITO SC687 5 50X100ML BOT IN | J37: INFINITO SC687 5 20X500ML BOT IN | K37: 39 | M37: 20 | N37: 19
A38: Infinito SC 500ML Bot(Bayer) | B38: 39 | D38: 20 | E38: 19 | F38: INFINITO SC687 5 20X500ML BOT IN | J38: INFINITO SC687 5 50X100ML BOT IN | K38: 100 | M38: 100
A39: Jump 2 Gm (BAYER) | B39: 6232 | D39: 702 | E39: 5530 | F39: JUMP WG80 160X(10X2GR) BAG IN | J39: JUMP WG80 160X(10X2GR) BAG IN | K39: 6232 | M39: 702 | N39: 5530
A40: Larvin WP75- 100Gm (Bayer) | B40: 20 | E40: 20 | F40: LARVIN (T) WP75 40X100GR BAG IN | J40: LARVIN (T) WP75 20X250GR BAG IN | K40: 47 | N40: 47
A41: Larvin WP75- 250Gm (Bayer) | B41: 47 | E41: 47 | F41: LARVIN (T) WP75 20X250GR BAG IN | J41: LARVIN (T) WP75 20X500GR BAG IN | K41: 34 | N41: 34
A42: Larvin WP75- 500Gm (Bayer) | B42: 34 | E42: 34 | F42: LARVIN (T) WP75 20X500GR BAG IN | J42: LARVIN (T) WP75 40X100GR BAG IN | K42: 20 | N42: 20
A43: Laudis SC630- 115Ml Bot (Bayer) | B43: 24 | E43: 24 | F43: LAUDIS SC630 8X115ML BOT IN | J43: LAUDIS SC630 10X57.5ML BOT IN | K43: 7 | N43: 7
A44: Laudis SC630- 57.5Ml Bot (Bayer) | B44: 7 | E44: 7 | F44: LAUDIS SC630 10X57.5ML BOT IN | J44: LAUDIS SC630 3X230ML BOT IN | K44: 3 | N44: 3
A45: Lauduis SC630 - 230ml (Bayer) | B45: 3 | E45: 3 | F45: LAUDIS SC630 3X230ML BOT IN | J45: LAUDIS SC630 8X115ML BOT IN | K45: 24 | N45: 24
A46: Lesenta WG80 - 40Gm(Bayer) | B46: 94 | D46: 3 | E46: 91 | F46: LESENTA WG80 100X40GR BAG IN | J46: LESENTA WG80 100X40GR BAG IN | K46: 94 | M46: 3 | N46: 91
A47: Luna Experience SC400- 100Ml(Bayer) | B47: 300 | D47: 200 | E47: 100 | F47: LUNA EXPERIENCE SC400 50X100ML BOT IN | J47: LUNA EXPERIENCE SC400 40X250ML BOT IN | K47: 348 | M47: 126 | N47: 222
A48: Luna Experience SC400- 250Ml(Bayer) | B48: 348 | D48: 126 | E48: 222 | F48: LUNA EXPERIENCE SC400 40X250ML BOT IN | J48: LUNA EXPERIENCE SC400 50X100ML BOT IN | K48: 300 | M48: 200 | N48: 100
A49: Movento Energy 100 Ml (Bayer) | B49: 50 | D49: 50 | F49: MOVENTO ENERGY SC240 50X100ML BOT IN | J49: MILLET HYBRID 9001 20X1.5 BAG IN | K49: 228 | M49: 228
A50: Movento Energy- 250Ml (Bayer) | B50: 55 | D50: 49 | E50: 6 | F50: MOVENTO ENERGY SC240 40X250ML BOT IN | J50: MILLET HYBRID 9444 20X1.5KG BAG IN | K50: 4 | M50: 4
A51: Nativo WG75- 100Gm (Bayer) | B51: 184 | D51: 184 | F51: NATIVO WG75 50X100GR BAG IN | J51: MILLET HYBRID 9450 20X1 5KG BAG IN | K51: -15 | L51: 228 | N51: 213
A52: Nativo WG75 - 1kg (Bayer) | F52: NATIVO WG75 10X1KG BAG IN | J52: MILLET HYBRID 9450 6X4.5KG BAG IN
A53: Nativo WG75- 250Gm (Bayer) | B53: 130 | D53: 88 | E53: 42 | F53: NATIVO WG75 40X250GR BAG IN | J53: MILLET PA 9180 (LOC) 20X1.50KG BAG IN
A54: Nativo WG75- 500Gm (Bayer) | B54: 8 | E54: 8 | F54: NATIVO WG75 20X500GR BAG IN | J54: MOVENTO ENERGY SC240 40X250ML BOT IN | K54: 55 | M54: 49 | N54: 6
A55: Nativo WG75- 50Gm (Bayer) | B55: 248 | D55: 151 | E55: 97 | F55: NATIVO WG75 100X50GR BAG IN | J55: MOVENTO ENERGY SC240 50X100ML BOT IN | K55: 50 | M55: 50
A56: Oberon SC- 100Ml (Bayer) | B56: 125 | D56: 7 | E56: 118 | F56: OBERON (T) SC240 50X100ML BOT IN | J56: MUSTARD 5222 30X1KG BAG IN | K56: 3 | M56: 3
A57: Oberon SC- 200Ml (Bayer) | B57: 154 | D57: 70 | E57: 84 | F57: OBERON (T) SC240 40X200ML BOT IN | J57: MUSTARD PA 5210 (LOC) 30X1KG BAG IN | K57: 91 | N57: 91
A58: Planofix 100 Ml (Bayer) | B58: 25.1 | D58: 18.1 | E58: 7 | F58: PLANOFIX SL4 5 50X100ML BOT IN | J58: NATIVO WG75 100X50GR BAG IN | K58: 248 | M58: 151 | N58: 97
A59: PPE Full Set (Bayer) | B59: 10 | E59: 10 | F59: DISCOUNTINUE PRODUCT | J59: NATIVO WG75 10X1KG BAG IN
A60: PPE Mini Kit (Bayer) | B60: 60 | E60: 60 | F60: DISCOUNTINUE PRODUCT | J60: NATIVO WG75 20X500GR BAG IN | K60: 8 | N60: 8
A61: Raft EC 1lt (Bayer) | B61: 5 | E61: 5 | F61: RAFT EC60 10X1L BOT IN | J61: NATIVO WG75 40X250GR BAG IN | K61: 130 | M61: 88 | N61: 42
A62: Raft EC 60% 250ml (Bayer) | B62: 15 | E62: 15 | F62: RAFT EC60 40X250ML BOT IN | J62: NATIVO WG75 50X100GR BAG IN | K62: 184 | M62: 184
A63: Raft EC 60% 500ml (Bayer) | F63: RAFT EC60 20X500ML BOT IN | J63: OBERON (T) SC240 40X200ML BOT IN | K63: 154 | M63: 70 | N63: 84
A64: Regent GR0-3- 1Kg (Bayer) | B64: 487 | D64: 51 | E64: 436 | F64: REGENT GR0 3 20X1KG BAG IN | J64: OBERON (T) SC240 50X100ML BOT IN | K64: 125 | M64: 7 | N64: 118
A65: Regent GR0-3 5kg (Bayer) | B65: 158 | D65: 17 | E65: 141 | F65: REGENT GR0 3 4X5KG BAG IN | J65: PLANOFIX SL4 5 50X100ML BOT IN | K65: 25.1 | M65: 18.1 | N65: 7
A66: Regent SC50- 100Ml BOT (Bayer) | B66: -407 | D66: 14 | E66: -421 | F66: REGENT (T) SC50 50X100ML BOT IN | J66: RAFT EC60 10X1L BOT IN | K66: 5 | N66: 5
A67: Regent SC50 - 1Ltr(Bayer) | B67: 4 | E67: 4 | F67: REGENT (T) SC50 10X1L BOT IN | J67: RAFT EC60 20X500ML BOT IN
A68: Regent SC50- 250Ml BOT (Bayer) | B68: 31 | D68: 29 | E68: 2 | F68: REGENT (T) SC50 20X250ML BOT IN | J68: RAFT EC60 40X250ML BOT IN | K68: 15 | N68: 15
A69: Regent SC50 500Ml Bot (Bayer) | B69: 186 | D69: 30 | E69: 156 | F69: REGENT (T) SC50 20X500ML BOT IN | J69: REGENT (T) SC50 10X1L BOT IN | K69: 4 | N69: 4
A70: Sencor WP70% 100Gm (Bayer) | F70: SENCOR WP70 60X100GR BAG IN | J70: REGENT (T) SC50 20X250ML BOT IN | K70: 31 | M70: 29 | N70: 2
A71: Solomon OD300- 100Ml(Bayer) | B71: 26 | D71: 18 | E71: 8 | F71: SOLOMON OD300 50X100ML BOT IN | J71: REGENT (T) SC50 20X500ML BOT IN | K71: 216 | M71: 60 | N71: 156
A72: Solomon OD300- 250Ml(Bayer) | B72: 24 | D72: 1 | E72: 23 | F72: SOLOMON OD300 40X250ML BOT IN | J72: REGENT (T) SC50 50X100ML BOT IN | K72: -407 | M72: 14 | N72: -421
A73: Spintor SC-75ml (Bayer) | F73: SPINTOR SC495 20X75ML BOT IN | J73: REGENT GR0 3 20X1KG BAG IN | K73: 487 | M73: 51 | N73: 436
A74: Sunrice WG15 50Gm Bot(Bayer) | F74: SUNRICE WG15 100X50GR BOT IN | J74: REGENT GR0 3 4X5KG BAG IN | K74: 163 | M74: 22 | N74: 141
A75: Velum Prime SC400 - 250Ml Bot.(Bayer) | B75: 62 | D75: -33 | E75: 95 | F75: VELUM PRIME SC400 40X250ML BOT IN | J75: SENCOR WP70 60X100GR BAG IN
A76: Velum Prime SC400 - 500Ml Bot.(Bayer) | B76: 140 | E76: 140 | F76: VELUM PRIME SC400 20X500ML BOT IN | J76: SOLOMON OD300 40X250ML BOT IN | K76: 24 | M76: 1 | N76: 23
A77: Whip Super(T)EC90- 250Ml(Bayer) | B77: 25 | E77: 25 | F77: WHIPSUPER (T) EC90 40X250ML BOT IN | J77: SOLOMON OD300 50X100ML BOT IN | K77: 26 | M77: 18 | N77: 8
A78: Bajra (9001) 1.5Kg (Bayer) | B78: 228 | D78: 228 | F78: MILLET HYBRID 9001 20X1.5 BAG IN | J78: SPINTOR SC495 20X75ML BOT IN
A79: Bajra (9180 LOC) 1.5Kg (Bayer) | F79: MILLET PA 9180 (LOC) 20X1.50KG BAG IN | J79: SUNRICE WG15 100X50GR BOT IN
A80: Bajra (9444) 1.5Kg (Bayer) | B80: 4 | D80: 4 | F80: MILLET HYBRID 9444 20X1.5KG BAG IN | J80: SURPASS 7007 BG2 20X450GR BOX IN
A81: Bajra (9450) 1.5Kg (Bayer) | B81: -15 | C81: 228 | E81: 213 | F81: MILLET HYBRID 9450 20X1 5KG BAG IN | J81: SURPASS 7172 BG2 20X450GR BAG IN | K81: 4 | M81: 4
A82: Bajra (9450) - 4.5Kg (Bayer) | F82: MILLET HYBRID 9450 6X4.5KG BAG IN | J82: VELUM PRIME SC400 20X500ML BOT IN | K82: 140 | N82: 140
A83: Bitter Gaurd 500 Seeds 61 Gm (Bayer) | F83: DISCOUNTINUE PRODUCT | J83: VELUM PRIME SC400 40X250ML BOT IN | K83: 62 | M83: -33 | N83: 95
A84: B.T.Cotton 7007BG 2-450Gm(Bayer) | F84: SURPASS 7007 BG2 20X450GR BOX IN | J84: WHIPSUPER (T) EC90 40X250ML BOT IN | K84: 25 | N84: 25
A85: B.T.Cotton 7172BG 2-450Gm(Bayer) | B85: 4 | D85: 4 | F85: SURPASS 7172 BG2 20X450GR BAG IN | J85: Grand Total | K85: 18145.1 | L85: -2438 | M85: 3743.85 | N85: 11963.25
A86: Mustard 5222 - 1 Kg (Bayer) | B86: 3 | D86: 3 | F86: MUSTARD 5222 30X1KG BAG IN
A87: Mustard PA5210 - 1kg (Bayer) | B87: 91 | E87: 91 | F87: MUSTARD PA 5210 (LOC) 30X1KG BAG IN

Sheet Master
A1: Item Details | B1: Master Name
A2: Admire WG70 2GM (Bayer) | B2: ADMIRE WG70 125X(8X2GR) BAG IN
A3: Admire WG70 30GM (Bayer) | B3: ADMIRE (T) WG70 150X30GR BOT IN
A4: Aliette WP80% 100Gm (Bayer) | B4: ALIETTE WP80 40X100GR BAG IN
A5: Aliette WP80% 1Kg (Bayer) | B5: ALIETTE WP80 10X1KG BAG IN
A6: Aliette WP 80% 250Gm(Bayer) | B6: ALIETTE WP80 20X250GR BAG IN
A7: Antracol(T)WP70 100Gm (Bayer) | B7: ANTRACOL (T) WP70 50X100GR BAG IN
A8: Antracol(T)WP70 1kg (Bayer) | B8: ANTRACOL (T) WP70 10X1KG BAG IN
A9: Antracol(T) WP70 250gm (Bayer) | B9: ANTRACOL (T) WP70 40X250GR BAG IN
A10: Antracol(T)WP 70 500 Gm (Bayer) | B10: ANTRACOL (T) WP70 20X500GR BAG IN
A11: Belt Expert SC 100Ml Bot.(Bayer) | B11: BELT EXPERT SC480 50X100ML BOT IN
A12: Confidor(T)SL- 100ML Bot (Bayer) | B12: CONFIDOR (T) SL200 50X100ML BOT IN
A13: Confidor(T)SL- 250ML Bot (Bayer) | B13: CONFIDOR (T) SL200 20X250ML BOT IN
A14: Confidor(T)SL- 500ml Bot (Bayer) | B14: CONFIDOR (T) SL200 20X500ML BOT IN
A15: Confidor(T)SL- 50ml Bot (Bayer) | B15: CONFIDOR (T) SL200 100X50ML BOT IN
A16: Decis EC 28% 1 Lt Bot (Bayer) | B16: DECIS EC 28 10X1L BOT IN
A17: Decis EC 28% 250Ml Bot(Bayer) | B17: DECIS EC 28 40X250ML BOT IN
A18: Decis EC 28% 500Ml Bot(Bayer) | B18: DECIS EC 28 20X500ML BOT IN
A19: Evergol Xtend 100 Ml (Bayer) | B19: EVERGOL XTEND FS308 50X100ML BOT IN
A20: Evergol Xtend 40 Ml (Bayer) | B20: EVERGOL XTEND FS308 100X40ML BOT IN
A21: Fame (T) Sc 100ml (Bayer) | B21: FAME (T) SC480 20X100ML BOT IN
A22: Fame (T) SC 10 Ml (Bayer) | B22: FAME (T) SC480 10X(20X10ML) BOT IN
A23: Fame (T) Sc 250ml (Bayer) | B23: FAME (T) SC480 8X250ML BOT IN
A24: Fame(T)Sc 50ml (Bayer) | B24: FAME (T) SC480 40X50ML BOT IN
A25: Fipronil 0.3% GR 5kg (Bayer) | B25: REGENT GR0 3 4X5KG BAG IN
A26: Fipronil 5% SC 500ml (Bayer) | B26: REGENT (T) SC50 20X500ML BOT IN
A27: Folicur EC 1 LTR(Bayer) | B27: FOLICUR (T) EC250 10X1L BOT IN
A28: Folicur EC250 100Ml BOT(Bayer) | B28: FOLICUR (T) EC250 50X100ML BOT IN
A29: Folicur EC250 250Ml BOT(Bayer) | B29: FOLICUR (T) EC250 40X250ML BOT IN
A30: Foost WP50 -250Gm (Bayer) | B30: FOOST WP50 20X250G BAG IN
A31: Foost WP50 -500Gm (Bayer) | B31: FOOST WP50 24X500G BAG IN
A32: Gauchoo 100Ml (Bayer) | B32: GAUCHO FS600 50X100ML BOT IN
A33: Gauchoo 1 Lt (Bayer) | B33: GAUCHO FS600 2X(5X1L) BOT IN
A34: Gauchoo 250Ml (Bayer) | B34: GAUCHO FS600 40X250ML BOT IN
A35: Gauchoo 50Ml (Bayer) | B35: GAUCHO FS600 100X50ML BOT IN
A36: Gauchoo 5 Lt (Bayer) | B36: GAUCHO FS600 2X5L BOT IN
A37: Infinito SC 100ML Bot(Bayer) | B37: INFINITO SC687 5 50X100ML BOT IN
A38: Infinito SC 500ML Bot(Bayer) | B38: INFINITO SC687 5 20X500ML BOT IN
A39: Jump 2 Gm (BAYER) | B39: JUMP WG80 160X(10X2GR) BAG IN
A40: Larvin WP75- 100Gm (Bayer) | B40: LARVIN (T) WP75 40X100GR BAG IN
A41: Larvin WP75- 250Gm (Bayer) | B41: LARVIN (T) WP75 20X250GR BAG IN
A42: Larvin WP75- 500Gm (Bayer) | B42: LARVIN (T) WP75 20X500GR BAG IN
A43: Laudis SC630- 115Ml Bot (Bayer) | B43: LAUDIS SC630 8X115ML BOT IN
A44: Laudis SC630- 57.5Ml Bot (Bayer) | B44: LAUDIS SC630 10X57.5ML BOT IN
A45: Lauduis SC630 - 230ml (Bayer) | B45: LAUDIS SC630 3X230ML BOT IN
A46: Lesenta WG80 - 40Gm(Bayer) | B46: LESENTA WG80 100X40GR BAG IN
A47: Luna Experience SC400- 100Ml(Bayer) | B47: LUNA EXPERIENCE SC400 50X100ML BOT IN
A48: Luna Experience SC400- 250Ml(Bayer) | B48: LUNA EXPERIENCE SC400 40X250ML BOT IN
A49: Movento Energy 100 Ml (Bayer) | B49: MOVENTO ENERGY SC240 50X100ML BOT IN
A50: Movento Energy- 250Ml (Bayer) | B50: MOVENTO ENERGY SC240 40X250ML BOT IN
A51: Nativo WG75- 100Gm (Bayer) | B51: NATIVO WG75 50X100GR BAG IN
A52: Nativo WG75 - 1kg (Bayer) | B52: NATIVO WG75 10X1KG BAG IN
A53: Nativo WG75- 250Gm (Bayer) | B53: NATIVO WG75 40X250GR BAG IN
A54: Nativo WG75- 500Gm (Bayer) | B54: NATIVO WG75 20X500GR BAG IN
A55: Nativo WG75- 50Gm (Bayer) | B55: NATIVO WG75 100X50GR BAG IN
A56: Oberon SC- 100Ml (Bayer) | B56: OBERON (T) SC240 50X100ML BOT IN
A57: Oberon SC- 200Ml (Bayer) | B57: OBERON (T) SC240 40X200ML BOT IN
A58: Planofix 100 Ml (Bayer) | B58: PLANOFIX SL4 5 50X100ML BOT IN
A59: PPE Full Set (Bayer) | B59: DISCOUNTINUE PRODUCT
A60: PPE Mini Kit (Bayer) | B60: DISCOUNTINUE PRODUCT
A61: Raft EC 1lt (Bayer) | B61: RAFT EC60 10X1L BOT IN
A62: Raft EC 60% 250ml (Bayer) | B62: RAFT EC60 40X250ML BOT IN
A63: Raft EC 60% 500ml (Bayer) | B63: RAFT EC60 20X500ML BOT IN
A64: Regent GR0-3- 1Kg (Bayer) | B64: REGENT GR0 3 20X1KG BAG IN
A65: Regent GR0-3 5kg (Bayer) | B65: REGENT GR0 3 4X5KG BAG IN
A66: Regent SC50- 100Ml BOT (Bayer) | B66: REGENT (T) SC50 50X100ML BOT IN
A67: Regent SC50 - 1Ltr(Bayer) | B67: REGENT (T) SC50 10X1L BOT IN
A68: Regent SC50- 250Ml BOT (Bayer) | B68: REGENT (T) SC50 20X250ML BOT IN
A69: Regent SC50 500Ml Bot (Bayer) | B69: REGENT (T) SC50 20X500ML BOT IN
A70: Sencor WP70% 100Gm (Bayer) | B70: SENCOR WP70 60X100GR BAG IN
A71: Solomon OD300- 100Ml(Bayer) | B71: SOLOMON OD300 50X100ML BOT IN
A72: Solomon OD300- 250Ml(Bayer) | B72: SOLOMON OD300 40X250ML BOT IN
A73: Spintor SC-75ml (Bayer) | B73: SPINTOR SC495 20X75ML BOT IN
A74: Sunrice WG15 50Gm Bot(Bayer) | B74: SUNRICE WG15 100X50GR BOT IN
A75: Velum Prime SC400 - 250Ml Bot.(Bayer) | B75: VELUM PRIME SC400 40X250ML BOT IN
A76: Velum Prime SC400 - 500Ml Bot.(Bayer) | B76: VELUM PRIME SC400 20X500ML BOT IN
A77: Whip Super(T)EC90- 250Ml(Bayer) | B77: WHIPSUPER (T) EC90 40X250ML BOT IN
A78: Bajra (9001) 1.5Kg (Bayer) | B78: MILLET HYBRID 9001 20X1.5 BAG IN
A79: Bajra (9180 LOC) 1.5Kg (Bayer) | B79: MILLET PA 9180 (LOC) 20X1.50KG BAG IN
A80: Bajra (9444) 1.5Kg (Bayer) | B80: MILLET HYBRID 9444 20X1.5KG BAG IN
A81: Bajra (9450) 1.5Kg (Bayer) | B81: MILLET HYBRID 9450 20X1 5KG BAG IN
A82: Bajra (9450) - 4.5Kg (Bayer) | B82: MILLET HYBRID 9450 6X4.5KG BAG IN
A83: Bitter Gaurd 500 Seeds 61 Gm (Bayer) | B83: DISCOUNTINUE PRODUCT
A84: B.T.Cotton 7007BG 2-450Gm(Bayer) | B84: SURPASS 7007 BG2 20X450GR BOX IN
A85: B.T.Cotton 7172BG 2-450Gm(Bayer) | B85: SURPASS 7172 BG2 20X450GR BAG IN
A86: Mustard 5222 - 1 Kg (Bayer) | B86: MUSTARD 5222 30X1KG BAG IN
A87: Mustard PA5210 - 1kg (Bayer) | B87: MUSTARD PA 5210 (LOC) 30X1KG BAG IN

Sheet Final Dealer Work
B2: PRODUCT | C2: ITEMALIAS | D2: Bpc | E2: Volume | F2: Opening Qty | G2: Purchase Qty | H2: Purchase Return Qty | I2: Sales Qty | J2: Sales Return Qty | K2: Transfer Qty | L2: Consignment Qty | M2: Adjustment Qty | N2: CLSG
B3: ADMIRE (T) WG70 150X30GR BOT IN | F3: 147 | G3: 0 | H3: 0 | I3: 26 | J3: 0 | K3: 0 | L3: 0 | M3: 0 | N3: 121
B4: ADMIRE WG70 125X(8X2GR) BAG IN | F4: 880 | G4: 0 | H4: 0 | I4: 362 | J4: 0 | K4: 0 | L4: 0 | M4: 0 | N4: 518
B5: ALIETTE WP80 10X1KG BAG IN | F5: 0 | G5: 0 | H5: 0 | I5: 0 | J5: 0 | K5: 0 | L5: 0 | M5: 0 | N5: 0
B6: ALIETTE WP80 20X250GR BAG IN | F6: 27 | G6: 0 | H6: 0 | I6: 3 | J6: 0 | K6: 0 | L6: 0 | M6: 0 | N6: 24
B7: ALIETTE WP80 40X100GR BAG IN | F7: 105 | G7: 0 | H7: 0 | I7: 4 | J7: 0 | K7: 0 | L7: 0 | M7: 0 | N7: 101
B8: ANTRACOL (T) WP70 10X1KG BAG IN | F8: 0 | G8: 0 | H8: 0 | I8: 0 | J8: 0 | K8: 0 | L8: 0 | M8: 0 | N8: 0
B9: ANTRACOL (T) WP70 20X500GR BAG IN | F9: 179 | G9: 0 | H9: 0 | I9: 103 | J9: 0 | K9: 0 | L9: 0 | M9: 0 | N9: 76
B10: ANTRACOL (T) WP70 40X250GR BAG IN | F10: 129 | G10: 40 | H10: 0 | I10: 131 | J10: 0 | K10: 0 | L10: 0 | M10: 0 | N10: 38
B11: ANTRACOL (T) WP70 50X100GR BAG IN | F11: 240 | G11: 0 | H11: 0 | I11: 122 | J11: 0 | K11: 0 | L11: 0 | M11: 0 | N11: 118
B12: BELT EXPERT SC480 50X100ML BOT IN | F12: 2650 | G12: -2550 | H12: 0 | I12: 100 | J12: 0 | K12: 0 | L12: 0 | M12: 0 | N12: 0
B13: CONFIDOR (T) SL200 100X50ML BOT IN | F13: 200 | G13: 0 | H13: 0 | I13: 94 | J13: 0 | K13: 0 | L13: 0 | M13: 0 | N13: 106
B14: CONFIDOR (T) SL200 20X250ML BOT IN | F14: 28 | G14: 0 | H14: 0 | I14: 0.75 | J14: 0 | K14: 0 | L14: 0 | M14: 0 | N14: 27.25
B15: CONFIDOR (T) SL200 20X500ML BOT IN | F15: 50 | G15: 0 | H15: 0 | I15: 16 | J15: 0 | K15: 0 | L15: 0 | M15: 0 | N15: 34
B16: CONFIDOR (T) SL200 50X100ML BOT IN | F16: 44 | G16: 0 | H16: 0 | I16: 20 | J16: 0 | K16: 0 | L16: 0 | M16: 0 | N16: 24
B17: DECIS EC 28 10X1L BOT IN | F17: 6 | G17: 0 | H17: 0 | I17: 2 | J17: 0 | K17: 0 | L17: 0 | M17: 0 | N17: 4
B18: DECIS EC 28 20X500ML BOT IN | F18: 20 | G18: 0 | H18: 0 | I18: 17 | J18: 0 | K18: 0 | L18: 0 | M18: 0 | N18: 3
B19: DECIS EC 28 40X250ML BOT IN | F19: 27 | G19: 0 | H19: 0 | I19: 3 | J19: 0 | K19: 0 | L19: 0 | M19: 0 | N19: 24
B20: DISCOUNTINUE PRODUCT | F20: 70 | G20: 0 | H20: 0 | I20: 0 | J20: 0 | K20: 0 | L20: 0 | M20: 0 | N20: 70
B21: EVERGOL XTEND FS308 100X40ML BOT IN | F21: 543 | G21: 0 | H21: 0 | I21: 61 | J21: 0 | K21: 0 | L21: 0 | M21: 0 | N21: 482
B22: EVERGOL XTEND FS308 50X100ML BOT IN | F22: 71 | G22: 0 | H22: 0 | I22: 1 | J22: 0 | K22: 0 | L22: 0 | M22: 0 | N22: 70
B23: FAME (T) SC480 10X(20X10ML) BOT IN | F23: 0 | G23: 0 | H23: 0 | I23: 0 | J23: 0 | K23: 0 | L23: 0 | M23: 0 | N23: 0
B24: FAME (T) SC480 20X100ML BOT IN | F24: 205 | G24: -100 | H24: 0 | I24: 90 | J24: 0 | K24: 0 | L24: 0 | M24: 0 | N24: 15
B25: FAME (T) SC480 40X50ML BOT IN | F25: 24 | G25: 0 | H25: 0 | I25: 21 | J25: 0 | K25: 0 | L25: 0 | M25: 0 | N25: 3
B26: FAME (T) SC480 8X250ML BOT IN | F26: 112 | G26: -56 | H26: 0 | I26: 43 | J26: 0 | K26: 0 | L26: 0 | M26: 0 | N26: 13
B27: FOLICUR (T) EC250 10X1L BOT IN | F27: 0 | G27: 0 | H27: 0 | I27: 0 | J27: 0 | K27: 0 | L27: 0 | M27: 0 | N27: 0
B28: FOLICUR (T) EC250 40X250ML BOT IN | F28: 2 | G28: 0 | H28: 0 | I28: 0 | J28: 0 | K28: 0 | L28: 0 | M28: 0 | N28: 2
B29: FOLICUR (T) EC250 50X100ML BOT IN | F29: 95 | G29: 0 | H29: 0 | I29: 70 | J29: 0 | K29: 0 | L29: 0 | M29: 0 | N29: 25
B30: FOOST WP50 20X250G BAG IN | F30: 0 | G30: 0 | H30: 0 | I30: 0 | J30: 0 | K30: 0 | L30: 0 | M30: 0 | N30: 0
B31: FOOST WP50 24X500G BAG IN | F31: 1425 | G31: 0 | H31: 0 | I31: 0 | J31: 0 | K31: 0 | L31: 0 | M31: 0 | N31: 1425
B32: GAUCHO FS600 100X50ML BOT IN | F32: 532 | G32: 0 | H32: 0 | I32: 5 | J32: 0 | K32: 0 | L32: 0 | M32: 0 | N32: 527
B33: GAUCHO FS600 2X(5X1L) BOT IN | F33: 170 | G33: 0 | H33: 0 | I33: 0 | J33: 0 | K33: 0 | L33: 0 | M33: 0 | N33: 170
B34: GAUCHO FS600 2X5L BOT IN | F34: 8 | G34: 0 | H34: 0 | I34: 0 | J34: 0 | K34: 0 | L34: 0 | M34: 0 | N34: 8
B35: GAUCHO FS600 40X250ML BOT IN | F35: 370 | G35: 0 | H35: 0 | I35: 9 | J35: 0 | K35: 0 | L35: 0 | M35: 0 | N35: 361
B36: GAUCHO FS600 50X100ML BOT IN | F36: 453 | G36: 0 | H36: 0 | I36: 271 | J36: 0 | K36: 0 | L36: 0 | M36: 0 | N36: 182
B37: INFINITO SC687 5 20X500ML BOT IN | F37: 39 | G37: 0 | H37: 0 | I37: 20 | J37: 0 | K37: 0 | L37: 0 | M37: 0 | N37: 19
B38: INFINITO SC687 5 50X100ML BOT IN | F38: 100 | G38: 0 | H38: 0 | I38: 100 | J38: 0 | K38: 0 | L38: 0 | M38: 0 | N38: 0
B39: JUMP WG80 160X(10X2GR) BAG IN | F39: 6232 | G39: 0 | H39: 0 | I39: 702 | J39: 0 | K39: 0 | L39: 0 | M39: 0 | N39: 5530
B40: LARVIN (T) WP75 20X250GR BAG IN | F40: 47 | G40: 0 | H40: 0 | I40: 0 | J40: 0 | K40: 0 | L40: 0 | M40: 0 | N40: 47
B41: LARVIN (T) WP75 20X500GR BAG IN | F41: 34 | G41: 0 | H41: 0 | I41: 0 | J41: 0 | K41: 0 | L41: 0 | M41: 0 | N41: 34
B42: LARVIN (T) WP75 40X100GR BAG IN | F42: 20 | G42: 0 | H42: 0 | I42: 0 | J42: 0 | K42: 0 | L42: 0 | M42: 0 | N42: 20
B43: LAUDIS SC630 10X57.5ML BOT IN | F43: 7 | G43: 0 | H43: 0 | I43: 0 | J43: 0 | K43: 0 | L43: 0 | M43: 0 | N43: 7
B44: LAUDIS SC630 3X230ML BOT IN | F44: 3 | G44: 0 | H44: 0 | I44: 0 | J44: 0 | K44: 0 | L44: 0 | M44: 0 | N44: 3
B45: LAUDIS SC630 8X115ML BOT IN | F45: 24 | G45: 0 | H45: 0 | I45: 0 | J45: 0 | K45: 0 | L45: 0 | M45: 0 | N45: 24
B46: LESENTA WG80 100X40GR BAG IN | F46: 94 | G46: 0 | H46: 0 | I46: 3 | J46: 0 | K46: 0 | L46: 0 | M46: 0 | N46: 91
B47: LUNA EXPERIENCE SC400 40X250ML BOT IN | F47: 348 | G47: 0 | H47: 0 | I47: 126 | J47: 0 | K47: 0 | L47: 0 | M47: 0 | N47: 222
B48: LUNA EXPERIENCE SC400 50X100ML BOT IN | F48: 300 | G48: 0 | H48: 0 | I48: 200 | J48: 0 | K48: 0 | L48: 0 | M48: 0 | N48: 100
B49: MILLET HYBRID 9001 20X1.5 BAG IN | F49: 228 | G49: 0 | H49: 0 | I49: 228 | J49: 0 | K49: 0 | L49: 0 | M49: 0 | N49: 0
B50: MILLET HYBRID 9444 20X1.5KG BAG IN | F50: 4 | G50: 0 | H50: 0 | I50: 4 | J50: 0 | K50: 0 | L50: 0 | M50: 0 | N50: 0
B51: MILLET HYBRID 9450 20X1 5KG BAG IN | F51: -15 | G51: 228 | H51: 0 | I51: 0 | J51: 0 | K51: 0 | L51: 0 | M51: 0 | N51: 213
B52: MILLET HYBRID 9450 6X4.5KG BAG IN | F52: 0 | G52: 0 | H52: 0 | I52: 0 | J52: 0 | K52: 0 | L52: 0 | M52: 0 | N52: 0
B53: MILLET PA 9180 (LOC) 20X1.50KG BAG IN | F53: 0 | G53: 0 | H53: 0 | I53: 0 | J53: 0 | K53: 0 | L53: 0 | M53: 0 | N53: 0
B54: MOVENTO ENERGY SC240 40X250ML BOT IN | F54: 55 | G54: 0 | H54: 0 | I54: 49 | J54: 0 | K54: 0 | L54: 0 | M54: 0 | N54: 6
B55: MOVENTO ENERGY SC240 50X100ML BOT IN | F55: 50 | G55: 0 | H55: 0 | I55: 50 | J55: 0 | K55: 0 | L55: 0 | M55: 0 | N55: 0
B56: MUSTARD 5222 30X1KG BAG IN | F56: 3 | G56: 0 | H56: 0 | I56: 3 | J56: 0 | K56: 0 | L56: 0 | M56: 0 | N56: 0
B57: MUSTARD PA 5210 (LOC) 30X1KG BAG IN | F57: 91 | G57: 0 | H57: 0 | I57: 0 | J57: 0 | K57: 0 | L57: 0 | M57: 0 | N57: 91
B58: NATIVO WG75 100X50GR BAG IN | F58: 248 | G58: 0 | H58: 0 | I58: 151 | J58: 0 | K58: 0 | L58: 0 | M58: 0 | N58: 97
B59: NATIVO WG75 10X1KG BAG IN | F59: 0 | G59: 0 | H59: 0 | I59: 0 | J59: 0 | K59: 0 | L59: 0 | M59: 0 | N59: 0
B60: NATIVO WG75 20X500GR BAG IN | F60: 8 | G60: 0 | H60: 0 | I60: 0 | J60: 0 | K60: 0 | L60: 0 | M60: 0 | N60: 8
B61: NATIVO WG75 40X250GR BAG IN | F61: 130 | G61: 0 | H61: 0 | I61: 88 | J61: 0 | K61: 0 | L61: 0 | M61: 0 | N61: 42
B62: NATIVO WG75 50X100GR BAG IN | F62: 184 | G62: 0 | H62: 0 | I62: 184 | J62: 0 | K62: 0 | L62: 0 | M62: 0 | N62: 0
B63: OBERON (T) SC240 40X200ML BOT IN | F63: 154 | G63: 0 | H63: 0 | I63: 70 | J63: 0 | K63: 0 | L63: 0 | M63: 0 | N63: 84
B64: OBERON (T) SC240 50X100ML BOT IN | F64: 125 | G64: 0 | H64: 0 | I64: 7 | J64: 0 | K64: 0 | L64: 0 | M64: 0 | N64: 118
B65: PLANOFIX SL4 5 50X100ML BOT IN | F65: 25.1 | G65: 0 | H65: 0 | I65: 18.1 | J65: 0 | K65: 0 | L65: 0 | M65: 0 | N65: 7
B66: RAFT EC60 10X1L BOT IN | F66: 5 | G66: 0 | H66: 0 | I66: 0 | J66: 0 | K66: 0 | L66: 0 | M66: 0 | N66: 5
B67: RAFT EC60 20X500ML BOT IN | F67: 0 | G67: 0 | H67: 0 | I67: 0 | J67: 0 | K67: 0 | L67: 0 | M67: 0 | N67: 0
B68: RAFT EC60 40X250ML BOT IN | F68: 15 | G68: 0 | H68: 0 | I68: 0 | J68: 0 | K68: 0 | L68: 0 | M68: 0 | N68: 15
B69: REGENT (T) SC50 10X1L BOT IN | F69: 4 | G69: 0 | H69: 0 | I69: 0 | J69: 0 | K69: 0 | L69: 0 | M69: 0 | N69: 4
B70: REGENT (T) SC50 20X250ML BOT IN | F70: 31 | G70: 0 | H70: 0 | I70: 29 | J70: 0 | K70: 0 | L70: 0 | M70: 0 | N70: 2
B71: REGENT (T) SC50 20X500ML BOT IN | F71: 216 | G71: 0 | H71: 0 | I71: 60 | J71: 0 | K71: 0 | L71: 0 | M71: 0 | N71: 156
B72: REGENT (T) SC50 50X100ML BOT IN | F72: -407 | G72: 0 | H72: 0 | I72: 14 | J72: 0 | K72: 0 | L72: 0 | M72: 0 | N72: -421
B73: REGENT GR0 3 20X1KG BAG IN | F73: 487 | G73: 0 | H73: 0 | I73: 51 | J73: 0 | K73: 0 | L73: 0 | M73: 0 | N73: 436
B74: REGENT GR0 3 4X5KG BAG IN | F74: 163 | G74: 0 | H74: 0 | I74: 22 | J74: 0 | K74: 0 | L74: 0 | M74: 0 | N74: 141
B75: SENCOR WP70 60X100GR BAG IN | F75: 0 | G75: 0 | H75: 0 | I75: 0 | J75: 0 | K75: 0 | L75: 0 | M75: 0 | N75: 0
B76: SOLOMON OD300 40X250ML BOT IN | F76: 24 | G76: 0 | H76: 0 | I76: 1 | J76: 0 | K76: 0 | L76: 0 | M76: 0 | N76: 23
B77: SOLOMON OD300 50X100ML BOT IN | F77: 26 | G77: 0 | H77: 0 | I77: 18 | J77: 0 | K77: 0 | L77: 0 | M77: 0 | N77: 8
B78: SPINTOR SC495 20X75ML BOT IN | F78: 0 | G78: 0 | H78: 0 | I78: 0 | J78: 0 | K78: 0 | L78: 0 | M78: 0 | N78: 0
B79: SUNRICE WG15 100X50GR BOT IN | F79: 0 | G79: 0 | H79: 0 | I79: 0 | J79: 0 | K79: 0 | L79: 0 | M79: 0 | N79: 0
B80: SURPASS 7007 BG2 20X450GR BOX IN | F80: 0 | G80: 0 | H80: 0 | I80: 0 | J80: 0 | K80: 0 | L80: 0 | M80: 0 | N80: 0
B81: SURPASS 7172 BG2 20X450GR BAG IN | F81: 4 | G81: 0 | H81: 0 | I81: 4 | J81: 0 | K81: 0 | L81: 0 | M81: 0 | N81: 0
B82: VELUM PRIME SC400 20X500ML BOT IN | F82: 140 | G82: 0 | H82: 0 | I82: 0 | J82: 0 | K82: 0 | L82: 0 | M82: 0 | N82: 140
B83: VELUM PRIME SC400 40X250ML BOT IN | F83: 62 | G83: 0 | H83: 0 | I83: -33 | J83: 0 | K83: 0 | L83: 0 | M83: 0 | N83: 95
B84: WHIPSUPER (T) EC90 40X250ML BOT IN | F84: 25 | G84: 0 | H84: 0 | I84: 0 | J84: 0 | K84: 0 | L84: 0 | M84: 0 | N84: 25
B85: Grand Total | F85: 18145.1 | G85: -2438 | H85: 0 | I85: 3743.85 | J85: 0 | K85: 0 | L85: 0 | M85: 0 | N85: 11963.25

Sheet Zylem SNS Report
A2: Company Name:-BAYER
A3: Stock and Sales FOR THE PERIOD 01-Jan-2020 TO 31-Mar-2020
A4: Generated on 6/21/2021 11:31:18 AM
A5: DISTRIBUTOR PRODUCTWISE
A6: OUTPUT IN : PIC,DETAILS AS : Column,CONSIDER : Voucher Date,INCLUDE VALIDATION : False
A7: DISTRIBUTOR:Mahesh Agro Serv.Centre,
A8: DISTRIBUTOR | B8: SAPCODE | C8: PRODUCT | D8: ITEMALIAS | E8: Opening Qty | F8: Purchase Qty | G8: Purchase Return Qty | H8: Sales Qty | I8: Sales Return Qty | J8: Transfer Qty | K8: Consignment Qty | L8: Adjustment Qty | M8: CLSG
A9: Mahesh Agro Serv.Centre | B9: 9065119 | C9: ADMIRE (T) WG70 150X30GR BOT IN | D9: 79234988 | E9: 147 | F9: 0 | G9: 0 | H9: 26 | I9: 0 | J9: 0 | K9: 0 | L9: 0 | M9: 121
A10: Mahesh Agro Serv.Centre | B10: 9065119 | C10: ADMIRE WG70 125X(8X2GR) BAG IN | D10: 6101665 | E10: 880 | F10: 0 | G10: 0 | H10: 362 | I10: 0 | J10: 0 | K10: 0 | L10: 0 | M10: 518
A11: Mahesh Agro Serv.Centre | B11: 9065119 | C11: ALIETTE WP80 20X250GR BAG IN | D11: 3822358 | E11: 27 | F11: 0 | G11: 0 | H11: 3 | I11: 0 | J11: 0 | K11: 0 | L11: 0 | M11: 24
A12: Mahesh Agro Serv.Centre | B12: 9065119 | C12: ALIETTE WP80 40X100GR BAG IN | D12: 3822331 | E12: 105 | F12: 0 | G12: 0 | H12: 4 | I12: 0 | J12: 0 | K12: 0 | L12: 0 | M12: 101
A13: Mahesh Agro Serv.Centre | B13: 9065119 | C13: ANTRACOL (T) WP70 20X500GR BAG IN | D13: 5999978 | E13: 179 | F13: 0 | G13: 0 | H13: 103 | I13: 0 | J13: 0 | K13: 0 | L13: 0 | M13: 76
A14: Mahesh Agro Serv.Centre | B14: 9065119 | C14: ANTRACOL (T) WP70 40X250GR BAG IN | D14: 6112179 | E14: 129 | F14: 40 | G14: 0 | H14: 131 | I14: 0 | J14: 0 | K14: 0 | L14: 0 | M14: 38
A15: Mahesh Agro Serv.Centre | B15: 9065119 | C15: ANTRACOL (T) WP70 50X100GR BAG IN | D15: 6113191 | E15: 240 | F15: 0 | G15: 0 | H15: 122 | I15: 0 | J15: 0 | K15: 0 | L15: 0 | M15: 118
A16: Mahesh Agro Serv.Centre | B16: 9065119 | C16: BELT EXPERT SC480 50X100ML BOT IN | D16: 79722869 | E16: 2650 | F16: 0 | G16: 2550 | H16: 150 | I16: 50 | J16: 0 | K16: 0 | L16: 0 | M16: 0
A17: Mahesh Agro Serv.Centre | B17: 9065119 | C17: CONFIDOR (T) SL200 100X50ML BOT IN | D17: 5708361 | E17: 200 | F17: 0 | G17: 0 | H17: 94 | I17: 0 | J17: 0 | K17: 0 | L17: 0 | M17: 106
A18: Mahesh Agro Serv.Centre | B18: 9065119 | C18: CONFIDOR (T) SL200 20X250ML BOT IN | D18: 5699494 | E18: 28 | F18: 0 | G18: 0 | H18: 0.75 | I18: 0 | J18: 0 | K18: 0 | L18: 0 | M18: 27.25
A19: Mahesh Agro Serv.Centre | B19: 9065119 | C19: CONFIDOR (T) SL200 20X500ML BOT IN | D19: 5704439 | E19: 50 | F19: 0 | G19: 0 | H19: 16 | I19: 0 | J19: 0 | K19: 0 | L19: 0 | M19: 34
A20: Mahesh Agro Serv.Centre | B20: 9065119 | C20: CONFIDOR (T) SL200 50X100ML BOT IN | D20: 5703475 | E20: 44 | F20: 0 | G20: 0 | H20: 20 | I20: 0 | J20: 0 | K20: 0 | L20: 0 | M20: 24
A21: Mahesh Agro Serv.Centre | B21: 9065119 | C21: DECIS EC 28 10X1L BOT IN | D21: 3823303 | E21: 6 | F21: 0 | G21: 0 | H21: 2 | I21: 0 | J21: 0 | K21: 0 | L21: 0 | M21: 4
A22: Mahesh Agro Serv.Centre | B22: 9065119 | C22: DECIS EC 28 20X500ML BOT IN | D22: 3823370 | E22: 20 | F22: 0 | G22: 0 | H22: 17 | I22: 0 | J22: 0 | K22: 0 | L22: 0 | M22: 3
A23: Mahesh Agro Serv.Centre | B23: 9065119 | C23: DECIS EC 28 40X250ML BOT IN | D23: 3823346 | E23: 27 | F23: 0 | G23: 0 | H23: 3 | I23: 0 | J23: 0 | K23: 0 | L23: 0 | M23: 24
A24: Mahesh Agro Serv.Centre | B24: 9065119 | C24: EVERGOL XTEND FS308 100X40ML BOT IN | D24: 85402838 | E24: 543 | F24: 0 | G24: 0 | H24: 61 | I24: 0 | J24: 0 | K24: 0 | L24: 0 | M24: 482
A25: Mahesh Agro Serv.Centre | B25: 9065119 | C25: EVERGOL XTEND FS308 50X100ML BOT IN | D25: 84065757 | E25: 71 | F25: 0 | G25: 0 | H25: 1 | I25: 0 | J25: 0 | K25: 0 | L25: 0 | M25: 70
A26: Mahesh Agro Serv.Centre | B26: 9065119 | C26: FAME (T) SC480 20X100ML BOT IN | D26: 79266197 | E26: 205 | F26: 0 | G26: 100 | H26: 90 | I26: 0 | J26: 0 | K26: 0 | L26: 0 | M26: 15
A27: Mahesh Agro Serv.Centre | B27: 9065119 | C27: FAME (T) SC480 40X50ML BOT IN | D27: 79224699 | E27: 24 | F27: 0 | G27: 0 | H27: 21 | I27: 0 | J27: 0 | K27: 0 | L27: 0 | M27: 3
A28: Mahesh Agro Serv.Centre | B28: 9065119 | C28: FAME (T) SC480 8X250ML BOT IN | D28: 80183291 | E28: 112 | F28: 0 | G28: 56 | H28: 43 | I28: 0 | J28: 0 | K28: 0 | L28: 0 | M28: 13
A29: Mahesh Agro Serv.Centre | B29: 9065119 | C29: FOLICUR (T) EC250 40X250ML BOT IN | D29: 79682271 | E29: 2 | F29: 0 | G29: 0 | H29: 0 | I29: 0 | J29: 0 | K29: 0 | L29: 0 | M29: 2
A30: Mahesh Agro Serv.Centre | B30: 9065119 | C30: FOLICUR (T) EC250 50X100ML BOT IN | D30: 79629125 | E30: 95 | F30: 0 | G30: 0 | H30: 70 | I30: 0 | J30: 0 | K30: 0 | L30: 0 | M30: 25
A31: Mahesh Agro Serv.Centre | B31: 9065119 | C31: FOOST WP50 24X500G BAG IN | D31: 85811770 | E31: 1425 | F31: 0 | G31: 0 | H31: 0 | I31: 0 | J31: 0 | K31: 0 | L31: 0 | M31: 1425
A32: Mahesh Agro Serv.Centre | B32: 9065119 | C32: GAUCHO FS600 2X(5X1L) BOT IN | D32: 3823907 | E32: 170 | F32: 0 | G32: 0 | H32: 0 | I32: 0 | J32: 0 | K32: 0 | L32: 0 | M32: 170
A33: Mahesh Agro Serv.Centre | B33: 9065119 | C33: GAUCHO FS600 100X50ML BOT IN | D33: 80034733 | E33: 532 | F33: 0 | G33: 0 | H33: 6 | I33: 1 | J33: 0 | K33: 0 | L33: 0 | M33: 527
A34: Mahesh Agro Serv.Centre | B34: 9065119 | C34: GAUCHO FS600 2X5L BOT IN | D34: 3823915 | E34: 8 | F34: 0 | G34: 0 | H34: 0 | I34: 0 | J34: 0 | K34: 0 | L34: 0 | M34: 8
A35: Mahesh Agro Serv.Centre | B35: 9065119 | C35: GAUCHO FS600 40X250ML BOT IN | D35: 84995681 | E35: 370 | F35: 0 | G35: 0 | H35: 9 | I35: 0 | J35: 0 | K35: 0 | L35: 0 | M35: 361
A36: Mahesh Agro Serv.Centre | B36: 9065119 | C36: GAUCHO FS600 50X100ML BOT IN | D36: 79664141 | E36: 453 | F36: 0 | G36: 0 | H36: 274 | I36: 3 | J36: 0 | K36: 0 | L36: 0 | M36: 182
A37: Mahesh Agro Serv.Centre | B37: 9065119 | C37: INFINITO SC687 5 20X500ML BOT IN | D37: 79641176 | E37: 39 | F37: 0 | G37: 0 | H37: 20 | I37: 0 | J37: 0 | K37: 0 | L37: 0 | M37: 19
A38: Mahesh Agro Serv.Centre | B38: 9065119 | C38: INFINITO SC687 5 50X100ML BOT IN | D38: 79632487 | E38: 100 | F38: 0 | G38: 0 | H38: 100 | I38: 0 | J38: 0 | K38: 0 | L38: 0 | M38: 0
A39: Mahesh Agro Serv.Centre | B39: 9065119 | C39: JUMP WG80 160X(10X2GR) BAG IN | D39: 79215304 | E39: 6232 | F39: 0 | G39: 0 | H39: 702 | I39: 0 | J39: 0 | K39: 0 | L39: 0 | M39: 5530
A40: Mahesh Agro Serv.Centre | B40: 9065119 | C40: LARVIN (T) WP75 20X250GR BAG IN | D40: 6003167 | E40: 47 | F40: 0 | G40: 0 | H40: 0 | I40: 0 | J40: 0 | K40: 0 | L40: 0 | M40: 47
A41: Mahesh Agro Serv.Centre | B41: 9065119 | C41: LARVIN (T) WP75 20X500GR BAG IN | D41: 6005291 | E41: 34 | F41: 0 | G41: 0 | H41: 0 | I41: 0 | J41: 0 | K41: 0 | L41: 0 | M41: 34
A42: Mahesh Agro Serv.Centre | B42: 9065119 | C42: LARVIN (T) WP75 40X100GR BAG IN | D42: 5980436 | E42: 20 | F42: 0 | G42: 0 | H42: 0 | I42: 0 | J42: 0 | K42: 0 | L42: 0 | M42: 20
A43: Mahesh Agro Serv.Centre | B43: 9065119 | C43: LAUDIS SC630 10X57.5ML BOT IN | D43: 84470481 | E43: 7 | F43: 0 | G43: 0 | H43: 0 | I43: 0 | J43: 0 | K43: 0 | L43: 0 | M43: 7
A44: Mahesh Agro Serv.Centre | B44: 9065119 | C44: LAUDIS SC630 3X230ML BOT IN | D44: 80563523 | E44: 3 | F44: 0 | G44: 0 | H44: 0 | I44: 0 | J44: 0 | K44: 0 | L44: 0 | M44: 3
A45: Mahesh Agro Serv.Centre | B45: 9065119 | C45: LAUDIS SC630 8X115ML BOT IN | D45: 80491085 | E45: 24 | F45: 0 | G45: 0 | H45: 0 | I45: 0 | J45: 0 | K45: 0 | L45: 0 | M45: 24
A46: Mahesh Agro Serv.Centre | B46: 9065119 | C46: LESENTA WG80 100X40GR BAG IN | D46: 80500823 | E46: 94 | F46: 0 | G46: 0 | H46: 3 | I46: 0 | J46: 0 | K46: 0 | L46: 0 | M46: 91
A47: Mahesh Agro Serv.Centre | B47: 9065119 | C47: LUNA EXPERIENCE SC400 40X250ML BOT IN | D47: 80549652 | E47: 348 | F47: 0 | G47: 0 | H47: 126 | I47: 0 | J47: 0 | K47: 0 | L47: 0 | M47: 222
A48: Mahesh Agro Serv.Centre | B48: 9065119 | C48: LUNA EXPERIENCE SC400 50X100ML BOT IN | D48: 80199414 | E48: 300 | F48: 0 | G48: 0 | H48: 200 | I48: 0 | J48: 0 | K48: 0 | L48: 0 | M48: 100
A49: Mahesh Agro Serv.Centre | B49: 9065119 | C49: MILLET HYBRID 9001 20X1.5 BAG IN | D49: 84986003 | E49: 228 | F49: 0 | G49: 0 | H49: 0 | I49: 0 | J49: 0 | K49: 0 | L49: 228 | M49: 0
A50: Mahesh Agro Serv.Centre | B50: 9065119 | C50: MILLET HYBRID 9444 20X1.5KG BAG IN | D50: 56000147 | E50: 4 | F50: 0 | G50: 0 | H50: 0 | I50: 0 | J50: 0 | K50: 0 | L50: 4 | M50: 0
A51: Mahesh Agro Serv.Centre | B51: 9065119 | C51: MILLET HYBRID 9450 20X1 5KG BAG IN | D51: 80228716 | E51: -15 | F51: 0 | G51: 0 | H51: 0 | I51: 0 | J51: 0 | K51: 0 | L51: -228 | M51: 213
A52: Mahesh Agro Serv.Centre | B52: 9065119 | C52: MOVENTO ENERGY SC240 40X250ML BOT IN | D52: 79679505 | E52: 55 | F52: 0 | G52: 0 | H52: 49 | I52: 0 | J52: 0 | K52: 0 | L52: 0 | M52: 6
A53: Mahesh Agro Serv.Centre | B53: 9065119 | C53: MOVENTO ENERGY SC240 50X100ML BOT IN | D53: 79722605 | E53: 50 | F53: 0 | G53: 0 | H53: 50 | I53: 0 | J53: 0 | K53: 0 | L53: 0 | M53: 0
A54: Mahesh Agro Serv.Centre | B54: 9065119 | C54: MUSTARD 5222 30X1KG BAG IN | D54: 81740844 | E54: 3 | F54: 0 | G54: 0 | H54: 0 | I54: 0 | J54: 0 | K54: 0 | L54: 3 | M54: 0
A55: Mahesh Agro Serv.Centre | B55: 9065119 | C55: NATIVO WG75 100X50GR BAG IN | D55: 80580061 | E55: 248 | F55: 0 | G55: 0 | H55: 151 | I55: 0 | J55: 0 | K55: 0 | L55: 0 | M55: 97
A56: Mahesh Agro Serv.Centre | B56: 9065119 | C56: NATIVO WG75 20X500GR BAG IN | D56: 79198698 | E56: 8 | F56: 0 | G56: 0 | H56: 0 | I56: 0 | J56: 0 | K56: 0 | L56: 0 | M56: 8
A57: Mahesh Agro Serv.Centre | B57: 9065119 | C57: NATIVO WG75 40X250GR BAG IN | D57: 79237790 | E57: 130 | F57: 0 | G57: 0 | H57: 88 | I57: 0 | J57: 0 | K57: 0 | L57: 0 | M57: 42
A58: Mahesh Agro Serv.Centre | B58: 9065119 | C58: NATIVO WG75 50X100GR BAG IN | D58: 79304102 | E58: 184 | F58: 0 | G58: 0 | H58: 184 | I58: 0 | J58: 0 | K58: 0 | L58: 0 | M58: 0
A59: Mahesh Agro Serv.Centre | B59: 9065119 | C59: OBERON (T) SC240 40X200ML BOT IN | D59: 79971362 | E59: 154 | F59: 0 | G59: 0 | H59: 70 | I59: 0 | J59: 0 | K59: 0 | L59: 0 | M59: 84
A60: Mahesh Agro Serv.Centre | B60: 9065119 | C60: OBERON (T) SC240 50X100ML BOT IN | D60: 79998538 | E60: 125 | F60: 0 | G60: 0 | H60: 7 | I60: 0 | J60: 0 | K60: 0 | L60: 0 | M60: 118
A61: Mahesh Agro Serv.Centre | B61: 9065119 | C61: PLANOFIX SL4 5 50X100ML BOT IN | D61: 3825098 | E61: 25.1 | F61: 0 | G61: 0 | H61: 18.2 | I61: 0.1 | J61: 0 | K61: 0 | L61: 0 | M61: 7
A62: Mahesh Agro Serv.Centre | B62: 9065119 | C62: RAFT EC60 10X1L BOT IN | D62: 3825322 | E62: 5 | F62: 0 | G62: 0 | H62: 0 | I62: 0 | J62: 0 | K62: 0 | L62: 0 | M62: 5
A63: Mahesh Agro Serv.Centre | B63: 9065119 | C63: RAFT EC60 40X250ML BOT IN | D63: 3825330 | E63: 15 | F63: 0 | G63: 0 | H63: 0 | I63: 0 | J63: 0 | K63: 0 | L63: 0 | M63: 15
A64: Mahesh Agro Serv.Centre | B64: 9065119 | C64: REGENT (T) SC50 20X250ML BOT IN | D64: 5976951 | E64: 31 | F64: 0 | G64: 0 | H64: 29 | I64: 0 | J64: 0 | K64: 0 | L64: 0 | M64: 2
A65: Mahesh Agro Serv.Centre | B65: 9065119 | C65: REGENT (T) SC50 20X500ML BOT IN | D65: 5987678 | E65: 216 | F65: 0 | G65: 0 | H65: 60 | I65: 0 | J65: 0 | K65: 0 | L65: 0 | M65: 156
A66: Mahesh Agro Serv.Centre | B66: 9065119 | C66: REGENT (T) SC50 50X100ML BOT IN | D66: 5975343 | E66: -407 | F66: 0 | G66: 0 | H66: 14 | I66: 0 | J66: 0 | K66: 0 | L66: 0 | M66: -421
A67: Mahesh Agro Serv.Centre | B67: 9065119 | C67: REGENT GR0 3 20X1KG BAG IN | D67: 79667140 | E67: 487 | F67: 0 | G67: 0 | H67: 51 | I67: 0 | J67: 0 | K67: 0 | L67: 0 | M67: 436
A68: Mahesh Agro Serv.Centre | B68: 9065119 | C68: REGENT GR0 3 4X5KG BAG IN | D68: 80018703 | E68: 163 | F68: 0 | G68: 0 | H68: 22 | I68: 0 | J68: 0 | K68: 0 | L68: 0 | M68: 141
A69: Mahesh Agro Serv.Centre | B69: 9065119 | C69: SOLOMON OD300 40X250ML BOT IN | D69: 79706723 | E69: 24 | F69: 0 | G69: 0 | H69: 1 | I69: 0 | J69: 0 | K69: 0 | L69: 0 | M69: 23
A70: Mahesh Agro Serv.Centre | B70: 9065119 | C70: SOLOMON OD300 50X100ML BOT IN | D70: 79641931 | E70: 26 | F70: 0 | G70: 0 | H70: 18 | I70: 0 | J70: 0 | K70: 0 | L70: 0 | M70: 8
A71: Mahesh Agro Serv.Centre | B71: 9065119 | C71: VELUM PRIME SC400 20X500ML BOT IN | D71: 84407038 | E71: 140 | F71: 0 | G71: 0 | H71: 0 | I71: 0 | J71: 0 | K71: 0 | L71: 0 | M71: 140
A72: Mahesh Agro Serv.Centre | B72: 9065119 | C72: VELUM PRIME SC400 40X250ML BOT IN | D72: 84474886 | E72: 62 | F72: 0 | G72: 0 | H72: 7 | I72: 40 | J72: 0 | K72: 0 | L72: 0 | M72: 95
A73: Mahesh Agro Serv.Centre | B73: 9065119 | C73: WHIPSUPER (T) EC90 40X250ML BOT IN | D73: 5966131 | E73: 25 | F73: 0 | G73: 0 | H73: 0 | I73: 0 | J73: 0 | K73: 0 | L73: 0 | M73: 25
A74: Mahesh Agro Serv.Centre | B74: 9065119 | C74: SURPASS 7172 BG2 20X450GR BAG IN | D74: 84456071 | E74: 4 | F74: 0 | G74: 0 | H74: 0 | I74: 0 | J74: 0 | K74: 0 | L74: 4 | M74: 0
A75: Mahesh Agro Serv.Centre | B75: 9065119 | C75: MUSTARD PA 5210 (LOC) 30X1KG BAG IN | D75: 86195089 | E75: 91 | F75: 0 | G75: 0 | H75: 0 | I75: 0 | J75: 0 | K75: 0 | L75: 0 | M75: 91
A76: Mahesh Agro Serv.Centre | B76: 9065119 | C76: REGENT (T) SC50 10X1L BOT IN | D76: 5962667 | E76: 4 | F76: 0 | G76: 0 | H76: 0 | I76: 0 | J76: 0 | K76: 0 | L76: 0 | M76: 4
A77: GRANDTOTAL | E77: 18075.1 | F77: 40 | G77: 2706 | H77: 3598.95 | I77: 94.1 | J77: 0 | K77: 0 | L77: 11 | M77: 11893.25

Sheet OPG
A1: ALIETTE WP80 20X250GR BAG IN | B1: =VLOOKUP(A1,'[2]Product Master Sheet'!$B$2:$F$506,5,0) -> 33 | C1: 27
A2: ALIETTE WP80 40X100GR BAG IN | B2: =VLOOKUP(A2,'[2]Product Master Sheet'!$B$2:$F$506,5,0) -> 35 | C2: 105
A3: ANTRACOL (T) WP70 20X500GR BAG IN | B3: =VLOOKUP(A3,'[2]Product Master Sheet'!$B$2:$F$506,5,0) -> 43 | C3: 179
A4: ANTRACOL (T) WP70 50X100GR BAG IN | B4: =VLOOKUP(A4,'[2]Product Master Sheet'!$B$2:$F$506,5,0) -> 45 | C4: 240
A5: BELT EXPERT SC480 50X100ML BOT IN | B5: =VLOOKUP(A5,'[2]Product Master Sheet'!$B$2:$F$506,5,0) -> 111 | C5: 2650
A6: CONFIDOR (T) SL200 100X50ML BOT IN | B6: =VLOOKUP(A6,'[2]Product Master Sheet'!$B$2:$F$506,5,0) -> 112 | C6: 200
A7: CONFIDOR (T) SL200 20X250ML BOT IN | B7: =VLOOKUP(A7,'[2]Product Master Sheet'!$B$2:$F$506,5,0) -> 114 | C7: 28
A8: CONFIDOR (T) SL200 20X500ML BOT IN | B8: =VLOOKUP(A8,'[2]Product Master Sheet'!$B$2:$F$506,5,0) -> 115 | C8: 50
A9: CONFIDOR (T) SL200 50X100ML BOT IN | B9: =VLOOKUP(A9,'[2]Product Master Sheet'!$B$2:$F$506,5,0) -> 116 | C9: 44
A10: DECIS EC 28 10X1L BOT IN | B10: =VLOOKUP(A10,'[2]Product Master Sheet'!$B$2:$F$506,5,0) -> 124 | C10: 6
A11: EVERGOL XTEND FS308 100X40ML BOT IN | B11: =VLOOKUP(A11,'[2]Product Master Sheet'!$B$2:$F$506,5,0) -> 139 | C11: 543
A12: EVERGOL XTEND FS308 50X100ML BOT IN | B12: =VLOOKUP(A12,'[2]Product Master Sheet'!$B$2:$F$506,5,0) -> 143 | C12: 71
A13: FAME (T) SC480 20X100ML BOT IN | B13: =VLOOKUP(A13,'[2]Product Master Sheet'!$B$2:$F$506,5,0) -> 145 | C13: 205
A14: FAME (T) SC480 40X50ML BOT IN | B14: =VLOOKUP(A14,'[2]Product Master Sheet'!$B$2:$F$506,5,0) -> 146 | C14: 24
A15: FAME (T) SC480 8X250ML BOT IN | B15: =VLOOKUP(A15,'[2]Product Master Sheet'!$B$2:$F$506,5,0) -> 148 | C15: 112
A16: INFINITO SC687 5 20X500ML BOT IN | B16: =VLOOKUP(A16,'[2]Product Master Sheet'!$B$2:$F$506,5,0) -> 195 | C16: 39
A17: INFINITO SC687 5 50X100ML BOT IN | B17: =VLOOKUP(A17,'[2]Product Master Sheet'!$B$2:$F$506,5,0) -> 197 | C17: 100
A18: JUMP WG80 160X(10X2GR) BAG IN | B18: =VLOOKUP(A18,'[2]Product Master Sheet'!$B$2:$F$506,5,0) -> 199 | C18: 6232
A19: LESENTA WG80 100X40GR BAG IN | B19: =VLOOKUP(A19,'[2]Product Master Sheet'!$B$2:$F$506,5,0) -> 215 | C19: 94
A20: LUNA EXPERIENCE SC400 40X250ML BOT IN | B20: =VLOOKUP(A20,'[2]Product Master Sheet'!$B$2:$F$506,5,0) -> 225 | C20: 348
A21: LUNA EXPERIENCE SC400 50X100ML BOT IN | B21: =VLOOKUP(A21,'[2]Product Master Sheet'!$B$2:$F$506,5,0) -> 226 | C21: 300
A22: MILLET HYBRID 9001 20X1.5 BAG IN | B22: =VLOOKUP(A22,'[2]Product Master Sheet'!$B$2:$F$506,5,0) -> 236 | C22: 228
A23: MILLET HYBRID 9450 20X1 5KG BAG IN | B23: =VLOOKUP(A23,'[2]Product Master Sheet'!$B$2:$F$506,5,0) -> 251 | C23: -15
A24: MOVENTO ENERGY SC240 40X250ML BOT IN | B24: =VLOOKUP(A24,'[2]Product Master Sheet'!$B$2:$F$506,5,0) -> 273 | C24: 55
A25: MOVENTO ENERGY SC240 50X100ML BOT IN | B25: =VLOOKUP(A25,'[2]Product Master Sheet'!$B$2:$F$506,5,0) -> 274 | C25: 50
A26: MUSTARD 5222 30X1KG BAG IN | B26: =VLOOKUP(A26,'[2]Product Master Sheet'!$B$2:$F$506,5,0) -> 278 | C26: 3
A27: NATIVO WG75 100X50GR BAG IN | B27: =VLOOKUP(A27,'[2]Product Master Sheet'!$B$2:$F$506,5,0) -> 289 | C27: 248
A28: NATIVO WG75 40X250GR BAG IN | B28: =VLOOKUP(A28,'[2]Product Master Sheet'!$B$2:$F$506,5,0) -> 293 | C28: 130
A29: NATIVO WG75 50X100GR BAG IN | B29: =VLOOKUP(A29,'[2]Product Master Sheet'!$B$2:$F$506,5,0) -> 294 | C29: 184
A30: OBERON (T) SC240 40X200ML BOT IN | B30: =VLOOKUP(A30,'[2]Product Master Sheet'!$B$2:$F$506,5,0) -> 299 | C30: 154
A31: OBERON (T) SC240 50X100ML BOT IN | B31: =VLOOKUP(A31,'[2]Product Master Sheet'!$B$2:$F$506,5,0) -> 300 | C31: 125
A32: PLANOFIX SL4 5 50X100ML BOT IN | B32: =VLOOKUP(A32,'[2]Product Master Sheet'!$B$2:$F$506,5,0) -> 307 | C32: 25.1
A33: REGENT (T) SC50 20X250ML BOT IN | B33: =VLOOKUP(A33,'[2]Product Master Sheet'!$B$2:$F$506,5,0) -> 325 | C33: 31
A34: REGENT (T) SC50 20X500ML BOT IN | B34: =VLOOKUP(A34,'[2]Product Master Sheet'!$B$2:$F$506,5,0) -> 326 | C34: 216
A35: REGENT (T) SC50 50X100ML BOT IN | B35: =VLOOKUP(A35,'[2]Product Master Sheet'!$B$2:$F$506,5,0) -> 327 | C35: -407
A36: REGENT GR0 3 20X1KG BAG IN | B36: =VLOOKUP(A36,'[2]Product Master Sheet'!$B$2:$F$506,5,0) -> 335 | C36: 487
A37: REGENT GR0 3 4X5KG BAG IN | B37: =VLOOKUP(A37,'[2]Product Master Sheet'!$B$2:$F$506,5,0) -> 336 | C37: 163
A38: SOLOMON OD300 40X250ML BOT IN | B38: =VLOOKUP(A38,'[2]Product Master Sheet'!$B$2:$F$506,5,0) -> 368 | C38: 24
A39: SOLOMON OD300 50X100ML BOT IN | B39: =VLOOKUP(A39,'[2]Product Master Sheet'!$B$2:$F$506,5,0) -> 370 | C39: 26
A40: VELUM PRIME SC400 40X250ML BOT IN | B40: =VLOOKUP(A40,'[2]Product Master Sheet'!$B$2:$F$506,5,0) ->  | C40: 62
A41: SURPASS 7172 BG2 20X450GR BAG IN | B41: =VLOOKUP(A41,'[2]Product Master Sheet'!$B$2:$F$506,5,0) ->  | C41: 4
A42: NEWPRODUCT_9065119 | B42: =VLOOKUP(A42,'[2]Product Master Sheet'!$B$2:$F$506,5,0) ->  | C42: 0
A43: ADMIRE (T) WG70 150X30GR BOT IN | B43: =VLOOKUP(A43,'[2]Product Master Sheet'!$B$2:$F$506,5,0) -> 13 | C43: 147
A44: ADMIRE WG70 125X(8X2GR) BAG IN | B44: =VLOOKUP(A44,'[2]Product Master Sheet'!$B$2:$F$506,5,0) -> 16 | C44: 880
A45: ALIETTE WP80 10X1KG BAG IN | B45: =VLOOKUP(A45,'[2]Product Master Sheet'!$B$2:$F$506,5,0) -> 31 | C45: 0
A46: ANTRACOL (T) WP70 10X1KG BAG IN | B46: =VLOOKUP(A46,'[2]Product Master Sheet'!$B$2:$F$506,5,0) -> 42 | C46: 0
A47: ANTRACOL (T) WP70 40X250GR BAG IN | B47: =VLOOKUP(A47,'[2]Product Master Sheet'!$B$2:$F$506,5,0) -> 44 | C47: 129
A48: DECIS EC 28 20X500ML BOT IN | B48: =VLOOKUP(A48,'[2]Product Master Sheet'!$B$2:$F$506,5,0) -> 125 | C48: 20
A49: DECIS EC 28 40X250ML BOT IN | B49: =VLOOKUP(A49,'[2]Product Master Sheet'!$B$2:$F$506,5,0) -> 126 | C49: 27
A50: DISCOUNTINUE PRODUCT | B50: =VLOOKUP(A50,'[2]Product Master Sheet'!$B$2:$F$506,5,0) -> 993 | C50: 70
A51: FAME (T) SC480 10X(20X10ML) BOT IN | B51: =VLOOKUP(A51,'[2]Product Master Sheet'!$B$2:$F$506,5,0) -> 144 | C51: 0
A52: FOLICUR (T) EC250 10X1L BOT IN | B52: =VLOOKUP(A52,'[2]Product Master Sheet'!$B$2:$F$506,5,0) -> 162 | C52: 0
A53: FOLICUR (T) EC250 40X250ML BOT IN | B53: =VLOOKUP(A53,'[2]Product Master Sheet'!$B$2:$F$506,5,0) -> 164 | C53: 2
A54: FOLICUR (T) EC250 50X100ML BOT IN | B54: =VLOOKUP(A54,'[2]Product Master Sheet'!$B$2:$F$506,5,0) -> 165 | C54: 95
A55: FOOST WP50 20X250G BAG IN | B55: =VLOOKUP(A55,'[2]Product Master Sheet'!$B$2:$F$506,5,0) -> 175 | C55: 0
A56: FOOST WP50 24X500G BAG IN | B56: =VLOOKUP(A56,'[2]Product Master Sheet'!$B$2:$F$506,5,0) -> 177 | C56: 1425
A57: GAUCHO FS600 100X50ML BOT IN | B57: =VLOOKUP(A57,'[2]Product Master Sheet'!$B$2:$F$506,5,0) -> 179 | C57: 532
A58: GAUCHO FS600 2X(5X1L) BOT IN | B58: =VLOOKUP(A58,'[2]Product Master Sheet'!$B$2:$F$506,5,0) -> 178 | C58: 170
A59: GAUCHO FS600 2X5L BOT IN | B59: =VLOOKUP(A59,'[2]Product Master Sheet'!$B$2:$F$506,5,0) -> 180 | C59: 8
A60: GAUCHO FS600 40X250ML BOT IN | B60: =VLOOKUP(A60,'[2]Product Master Sheet'!$B$2:$F$506,5,0) -> 181 | C60: 370
A61: GAUCHO FS600 50X100ML BOT IN | B61: =VLOOKUP(A61,'[2]Product Master Sheet'!$B$2:$F$506,5,0) -> 182 | C61: 453
A62: LARVIN (T) WP75 20X250GR BAG IN | B62: =VLOOKUP(A62,'[2]Product Master Sheet'!$B$2:$F$506,5,0) -> 205 | C62: 47
A63: LARVIN (T) WP75 20X500GR BAG IN | B63: =VLOOKUP(A63,'[2]Product Master Sheet'!$B$2:$F$506,5,0) -> 206 | C63: 34
A64: LARVIN (T) WP75 40X100GR BAG IN | B64: =VLOOKUP(A64,'[2]Product Master Sheet'!$B$2:$F$506,5,0) -> 207 | C64: 20
A65: LAUDIS SC630 10X57.5ML BOT IN | B65: =VLOOKUP(A65,'[2]Product Master Sheet'!$B$2:$F$506,5,0) -> 210 | C65: 7
A66: LAUDIS SC630 3X230ML BOT IN | B66: =VLOOKUP(A66,'[2]Product Master Sheet'!$B$2:$F$506,5,0) -> 211 | C66: 3
A67: LAUDIS SC630 8X115ML BOT IN | B67: =VLOOKUP(A67,'[2]Product Master Sheet'!$B$2:$F$506,5,0) -> 212 | C67: 24
A68: MILLET HYBRID 9444 20X1.5KG BAG IN | B68: =VLOOKUP(A68,'[2]Product Master Sheet'!$B$2:$F$506,5,0) -> 243 | C68: 4
A69: MILLET HYBRID 9450 6X4.5KG BAG IN | B69: =VLOOKUP(A69,'[2]Product Master Sheet'!$B$2:$F$506,5,0) -> 253 | C69: 0
A70: MILLET PA 9180 (LOC) 20X1.50KG BAG IN | B70: =VLOOKUP(A70,'[2]Product Master Sheet'!$B$2:$F$506,5,0) -> 915 | C70: 0
A71: MUSTARD PA 5210 (LOC) 30X1KG BAG IN | B71: =VLOOKUP(A71,'[2]Product Master Sheet'!$B$2:$F$506,5,0) -> 911 | C71: 91
A72: NATIVO WG75 10X1KG BAG IN | B72: =VLOOKUP(A72,'[2]Product Master Sheet'!$B$2:$F$506,5,0) -> 290 | C72: 0
A73: NATIVO WG75 20X500GR BAG IN | B73: =VLOOKUP(A73,'[2]Product Master Sheet'!$B$2:$F$506,5,0) -> 292 | C73: 8
A74: RAFT EC60 10X1L BOT IN | B74: =VLOOKUP(A74,'[2]Product Master Sheet'!$B$2:$F$506,5,0) -> 313 | C74: 5
A75: RAFT EC60 20X500ML BOT IN | B75: =VLOOKUP(A75,'[2]Product Master Sheet'!$B$2:$F$506,5,0) -> 314 | C75: 0
A76: RAFT EC60 40X250ML BOT IN | B76: =VLOOKUP(A76,'[2]Product Master Sheet'!$B$2:$F$506,5,0) -> 315 | C76: 15
A77: REGENT (T) SC50 10X1L BOT IN | B77: =VLOOKUP(A77,'[2]Product Master Sheet'!$B$2:$F$506,5,0) -> 324 | C77: 4
A78: SENCOR WP70 60X100GR BAG IN | B78: =VLOOKUP(A78,'[2]Product Master Sheet'!$B$2:$F$506,5,0) -> 353 | C78: 0
A79: SPINTOR SC495 20X75ML BOT IN | B79: =VLOOKUP(A79,'[2]Product Master Sheet'!$B$2:$F$506,5,0) ->  | C79: 0
A80: SUNRICE WG15 100X50GR BOT IN | B80: =VLOOKUP(A80,'[2]Product Master Sheet'!$B$2:$F$506,5,0) ->  | C80: 0
A81: SURPASS 7007 BG2 20X450GR BOX IN | B81: =VLOOKUP(A81,'[2]Product Master Sheet'!$B$2:$F$506,5,0) ->  | C81: 0
A82: VELUM PRIME SC400 20X500ML BOT IN | B82: =VLOOKUP(A82,'[2]Product Master Sheet'!$B$2:$F$506,5,0) ->  | C82: 140
A83: WHIPSUPER (T) EC90 40X250ML BOT IN | B83: =VLOOKUP(A83,'[2]Product Master Sheet'!$B$2:$F$506,5,0) ->  | C83: 25

Sheet Reco
B1: Zylem Report -01-Jan-2020 TO 31-Mar-2020 | K1: Dealer Report -01-Jan-2020 TO 31-Mar-2020 | T1: Difference (+/-)
A3: DEALER CODE | B3: Opening Qty | C3: Purchase Qty | D3: Purchase Return Qty | E3: Sales Qty | F3: Sales Return Qty | G3: Transfer Qty | H3: Consignment Qty | I3: Adjustment Qty | J3: CLSG | K3: Opening Qty | L3: Purchase Qty | M3: Purchase Return Qty | N3: Sales Qty | O3: Sales Return Qty | P3: Transfer Qty | Q3: Consignment Qty | R3: Adjustment Qty | S3: CLSG | T3: Opening Stock Qty | U3: Purchase Qty | V3: Purchase Return Qty | W3: Sales Qty | X3: Sales Return Qty | Y3: Transfer Qty | Z3: Consignment Qty | AA3: Adjustments Qty | AB3: CLSG | AC3: Remark
A4: ADMIRE (T) WG70 150X30GR BOT IN | B4: 147 | C4: 0 | D4: 0 | E4: 26 | F4: 0 | G4: 0 | H4: 0 | I4: 0 | J4: 121 | K4: 147 | L4: 0 | M4: 0 | N4: 26 | O4: 0 | P4: 0 | Q4: 0 | R4: 0 | S4: 121 | T4: 0 | U4: 0 | V4: 0 | W4: 0 | X4: 0 | Y4: 0 | Z4: 0 | AA4: 0 | AB4: 0 | AC4: Ok
A5: ADMIRE WG70 125X(8X2GR) BAG IN | B5: 880 | C5: 0 | D5: 0 | E5: 362 | F5: 0 | G5: 0 | H5: 0 | I5: 0 | J5: 518 | K5: 880 | L5: 0 | M5: 0 | N5: 362 | O5: 0 | P5: 0 | Q5: 0 | R5: 0 | S5: 518 | T5: 0 | U5: 0 | V5: 0 | W5: 0 | X5: 0 | Y5: 0 | Z5: 0 | AA5: 0 | AB5: 0 | AC5: Ok
A6: ALIETTE WP80 20X250GR BAG IN | B6: 27 | C6: 0 | D6: 0 | E6: 3 | F6: 0 | G6: 0 | H6: 0 | I6: 0 | J6: 24 | K6: 27 | L6: 0 | M6: 0 | N6: 3 | O6: 0 | P6: 0 | Q6: 0 | R6: 0 | S6: 24 | T6: 0 | U6: 0 | V6: 0 | W6: 0 | X6: 0 | Y6: 0 | Z6: 0 | AA6: 0 | AB6: 0 | AC6: Ok
A7: ALIETTE WP80 40X100GR BAG IN | B7: 105 | C7: 0 | D7: 0 | E7: 4 | F7: 0 | G7: 0 | H7: 0 | I7: 0 | J7: 101 | K7: 105 | L7: 0 | M7: 0 | N7: 4 | O7: 0 | P7: 0 | Q7: 0 | R7: 0 | S7: 101 | T7: 0 | U7: 0 | V7: 0 | W7: 0 | X7: 0 | Y7: 0 | Z7: 0 | AA7: 0 | AB7: 0 | AC7: Ok
A8: ANTRACOL (T) WP70 20X500GR BAG IN | B8: 179 | C8: 0 | D8: 0 | E8: 103 | F8: 0 | G8: 0 | H8: 0 | I8: 0 | J8: 76 | K8: 179 | L8: 0 | M8: 0 | N8: 103 | O8: 0 | P8: 0 | Q8: 0 | R8: 0 | S8: 76 | T8: 0 | U8: 0 | V8: 0 | W8: 0 | X8: 0 | Y8: 0 | Z8: 0 | AA8: 0 | AB8: 0 | AC8: Ok
A9: ANTRACOL (T) WP70 40X250GR BAG IN | B9: 129 | C9: 40 | D9: 0 | E9: 131 | F9: 0 | G9: 0 | H9: 0 | I9: 0 | J9: 38 | K9: 129 | L9: 40 | M9: 0 | N9: 131 | O9: 0 | P9: 0 | Q9: 0 | R9: 0 | S9: 38 | T9: 0 | U9: 0 | V9: 0 | W9: 0 | X9: 0 | Y9: 0 | Z9: 0 | AA9: 0 | AB9: 0 | AC9: Ok
A10: ANTRACOL (T) WP70 50X100GR BAG IN | B10: 240 | C10: 0 | D10: 0 | E10: 122 | F10: 0 | G10: 0 | H10: 0 | I10: 0 | J10: 118 | K10: 240 | L10: 0 | M10: 0 | N10: 122 | O10: 0 | P10: 0 | Q10: 0 | R10: 0 | S10: 118 | T10: 0 | U10: 0 | V10: 0 | W10: 0 | X10: 0 | Y10: 0 | Z10: 0 | AA10: 0 | AB10: 0 | AC10: Ok
A11: BELT EXPERT SC480 50X100ML BOT IN | B11: 2650 | C11: 0 | D11: 2550 | E11: 150 | F11: 50 | G11: 0 | H11: 0 | I11: 0 | J11: 0 | K11: 2650 | L11: -2550 | M11: 0 | N11: 100 | O11: 0 | P11: 0 | Q11: 0 | R11: 0 | S11: 0 | T11: 0 | U11: 2550 | V11: 2550 | W11: 50 | X11: 50 | Y11: 0 | Z11: 0 | AA11: 0 | AB11: 0 | AC11: Ok
A12: CONFIDOR (T) SL200 100X50ML BOT IN | B12: 200 | C12: 0 | D12: 0 | E12: 94 | F12: 0 | G12: 0 | H12: 0 | I12: 0 | J12: 106 | K12: 200 | L12: 0 | M12: 0 | N12: 94 | O12: 0 | P12: 0 | Q12: 0 | R12: 0 | S12: 106 | T12: 0 | U12: 0 | V12: 0 | W12: 0 | X12: 0 | Y12: 0 | Z12: 0 | AA12: 0 | AB12: 0 | AC12: Ok
A13: CONFIDOR (T) SL200 20X250ML BOT IN | B13: 28 | C13: 0 | D13: 0 | E13: 0.75 | F13: 0 | G13: 0 | H13: 0 | I13: 0 | J13: 27.25 | K13: 28 | L13: 0 | M13: 0 | N13: 0.75 | O13: 0 | P13: 0 | Q13: 0 | R13: 0 | S13: 27.25 | T13: 0 | U13: 0 | V13: 0 | W13: 0 | X13: 0 | Y13: 0 | Z13: 0 | AA13: 0 | AB13: 0 | AC13: Ok
A14: CONFIDOR (T) SL200 20X500ML BOT IN | B14: 50 | C14: 0 | D14: 0 | E14: 16 | F14: 0 | G14: 0 | H14: 0 | I14: 0 | J14: 34 | K14: 50 | L14: 0 | M14: 0 | N14: 16 | O14: 0 | P14: 0 | Q14: 0 | R14: 0 | S14: 34 | T14: 0 | U14: 0 | V14: 0 | W14: 0 | X14: 0 | Y14: 0 | Z14: 0 | AA14: 0 | AB14: 0 | AC14: Ok
A15: CONFIDOR (T) SL200 50X100ML BOT IN | B15: 44 | C15: 0 | D15: 0 | E15: 20 | F15: 0 | G15: 0 | H15: 0 | I15: 0 | J15: 24 | K15: 44 | L15: 0 | M15: 0 | N15: 20 | O15: 0 | P15: 0 | Q15: 0 | R15: 0 | S15: 24 | T15: 0 | U15: 0 | V15: 0 | W15: 0 | X15: 0 | Y15: 0 | Z15: 0 | AA15: 0 | AB15: 0 | AC15: Ok
A16: DECIS EC 28 10X1L BOT IN | B16: 6 | C16: 0 | D16: 0 | E16: 2 | F16: 0 | G16: 0 | H16: 0 | I16: 0 | J16: 4 | K16: 6 | L16: 0 | M16: 0 | N16: 2 | O16: 0 | P16: 0 | Q16: 0 | R16: 0 | S16: 4 | T16: 0 | U16: 0 | V16: 0 | W16: 0 | X16: 0 | Y16: 0 | Z16: 0 | AA16: 0 | AB16: 0 | AC16: Ok
A17: DECIS EC 28 20X500ML BOT IN | B17: 20 | C17: 0 | D17: 0 | E17: 17 | F17: 0 | G17: 0 | H17: 0 | I17: 0 | J17: 3 | K17: 20 | L17: 0 | M17: 0 | N17: 17 | O17: 0 | P17: 0 | Q17: 0 | R17: 0 | S17: 3 | T17: 0 | U17: 0 | V17: 0 | W17: 0 | X17: 0 | Y17: 0 | Z17: 0 | AA17: 0 | AB17: 0 | AC17: Ok
A18: DECIS EC 28 40X250ML BOT IN | B18: 27 | C18: 0 | D18: 0 | E18: 3 | F18: 0 | G18: 0 | H18: 0 | I18: 0 | J18: 24 | K18: 27 | L18: 0 | M18: 0 | N18: 3 | O18: 0 | P18: 0 | Q18: 0 | R18: 0 | S18: 24 | T18: 0 | U18: 0 | V18: 0 | W18: 0 | X18: 0 | Y18: 0 | Z18: 0 | AA18: 0 | AB18: 0 | AC18: Ok
A19: EVERGOL XTEND FS308 100X40ML BOT IN | B19: 543 | C19: 0 | D19: 0 | E19: 61 | F19: 0 | G19: 0 | H19: 0 | I19: 0 | J19: 482 | K19: 543 | L19: 0 | M19: 0 | N19: 61 | O19: 0 | P19: 0 | Q19: 0 | R19: 0 | S19: 482 | T19: 0 | U19: 0 | V19: 0 | W19: 0 | X19: 0 | Y19: 0 | Z19: 0 | AA19: 0 | AB19: 0 | AC19: Ok
A20: EVERGOL XTEND FS308 50X100ML BOT IN | B20: 71 | C20: 0 | D20: 0 | E20: 1 | F20: 0 | G20: 0 | H20: 0 | I20: 0 | J20: 70 | K20: 71 | L20: 0 | M20: 0 | N20: 1 | O20: 0 | P20: 0 | Q20: 0 | R20: 0 | S20: 70 | T20: 0 | U20: 0 | V20: 0 | W20: 0 | X20: 0 | Y20: 0 | Z20: 0 | AA20: 0 | AB20: 0 | AC20: Ok
A21: FAME (T) SC480 20X100ML BOT IN | B21: 205 | C21: 0 | D21: 100 | E21: 90 | F21: 0 | G21: 0 | H21: 0 | I21: 0 | J21: 15 | K21: 205 | L21: -100 | M21: 0 | N21: 90 | O21: 0 | P21: 0 | Q21: 0 | R21: 0 | S21: 15 | T21: 0 | U21: 100 | V21: 100 | W21: 0 | X21: 0 | Y21: 0 | Z21: 0 | AA21: 0 | AB21: 0 | AC21: Ok
A22: FAME (T) SC480 40X50ML BOT IN | B22: 24 | C22: 0 | D22: 0 | E22: 21 | F22: 0 | G22: 0 | H22: 0 | I22: 0 | J22: 3 | K22: 24 | L22: 0 | M22: 0 | N22: 21 | O22: 0 | P22: 0 | Q22: 0 | R22: 0 | S22: 3 | T22: 0 | U22: 0 | V22: 0 | W22: 0 | X22: 0 | Y22: 0 | Z22: 0 | AA22: 0 | AB22: 0 | AC22: Ok
A23: FAME (T) SC480 8X250ML BOT IN | B23: 112 | C23: 0 | D23: 56 | E23: 43 | F23: 0 | G23: 0 | H23: 0 | I23: 0 | J23: 13 | K23: 112 | L23: -56 | M23: 0 | N23: 43 | O23: 0 | P23: 0 | Q23: 0 | R23: 0 | S23: 13 | T23: 0 | U23: 56 | V23: 56 | W23: 0 | X23: 0 | Y23: 0 | Z23: 0 | AA23: 0 | AB23: 0 | AC23: Ok
A24: FOLICUR (T) EC250 40X250ML BOT IN | B24: 2 | C24: 0 | D24: 0 | E24: 0 | F24: 0 | G24: 0 | H24: 0 | I24: 0 | J24: 2 | K24: 2 | L24: 0 | M24: 0 | N24: 0 | O24: 0 | P24: 0 | Q24: 0 | R24: 0 | S24: 2 | T24: 0 | U24: 0 | V24: 0 | W24: 0 | X24: 0 | Y24: 0 | Z24: 0 | AA24: 0 | AB24: 0 | AC24: Ok
A25: FOLICUR (T) EC250 50X100ML BOT IN | B25: 95 | C25: 0 | D25: 0 | E25: 70 | F25: 0 | G25: 0 | H25: 0 | I25: 0 | J25: 25 | K25: 95 | L25: 0 | M25: 0 | N25: 70 | O25: 0 | P25: 0 | Q25: 0 | R25: 0 | S25: 25 | T25: 0 | U25: 0 | V25: 0 | W25: 0 | X25: 0 | Y25: 0 | Z25: 0 | AA25: 0 | AB25: 0 | AC25: Ok
A26: FOOST WP50 24X500G BAG IN | B26: 1425 | C26: 0 | D26: 0 | E26: 0 | F26: 0 | G26: 0 | H26: 0 | I26: 0 | J26: 1425 | K26: 1425 | L26: 0 | M26: 0 | N26: 0 | O26: 0 | P26: 0 | Q26: 0 | R26: 0 | S26: 1425 | T26: 0 | U26: 0 | V26: 0 | W26: 0 | X26: 0 | Y26: 0 | Z26: 0 | AA26: 0 | AB26: 0 | AC26: Ok
A27: GAUCHO FS600 2X(5X1L) BOT IN | B27: 170 | C27: 0 | D27: 0 | E27: 0 | F27: 0 | G27: 0 | H27: 0 | I27: 0 | J27: 170 | K27: 170 | L27: 0 | M27: 0 | N27: 0 | O27: 0 | P27: 0 | Q27: 0 | R27: 0 | S27: 170 | T27: 0 | U27: 0 | V27: 0 | W27: 0 | X27: 0 | Y27: 0 | Z27: 0 | AA27: 0 | AB27: 0 | AC27: Ok
A28: GAUCHO FS600 100X50ML BOT IN | B28: 532 | C28: 0 | D28: 0 | E28: 6 | F28: 1 | G28: 0 | H28: 0 | I28: 0 | J28: 527 | K28: 532 | L28: 0 | M28: 0 | N28: 5 | O28: 0 | P28: 0 | Q28: 0 | R28: 0 | S28: 527 | T28: 0 | U28: 0 | V28: 0 | W28: 1 | X28: 1 | Y28: 0 | Z28: 0 | AA28: 0 | AB28: 0 | AC28: Ok
A29: GAUCHO FS600 2X5L BOT IN | B29: 8 | C29: 0 | D29: 0 | E29: 0 | F29: 0 | G29: 0 | H29: 0 | I29: 0 | J29: 8 | K29: 8 | L29: 0 | M29: 0 | N29: 0 | O29: 0 | P29: 0 | Q29: 0 | R29: 0 | S29: 8 | T29: 0 | U29: 0 | V29: 0 | W29: 0 | X29: 0 | Y29: 0 | Z29: 0 | AA29: 0 | AB29: 0 | AC29: Ok
A30: GAUCHO FS600 40X250ML BOT IN | B30: 370 | C30: 0 | D30: 0 | E30: 9 | F30: 0 | G30: 0 | H30: 0 | I30: 0 | J30: 361 | K30: 370 | L30: 0 | M30: 0 | N30: 9 | O30: 0 | P30: 0 | Q30: 0 | R30: 0 | S30: 361 | T30: 0 | U30: 0 | V30: 0 | W30: 0 | X30: 0 | Y30: 0 | Z30: 0 | AA30: 0 | AB30: 0 | AC30: Ok
A31: GAUCHO FS600 50X100ML BOT IN | B31: 453 | C31: 0 | D31: 0 | E31: 274 | F31: 3 | G31: 0 | H31: 0 | I31: 0 | J31: 182 | K31: 453 | L31: 0 | M31: 0 | N31: 271 | O31: 0 | P31: 0 | Q31: 0 | R31: 0 | S31: 182 | T31: 0 | U31: 0 | V31: 0 | W31: 3 | X31: 3 | Y31: 0 | Z31: 0 | AA31: 0 | AB31: 0 | AC31: Ok
A32: INFINITO SC687 5 20X500ML BOT IN | B32: 39 | C32: 0 | D32: 0 | E32: 20 | F32: 0 | G32: 0 | H32: 0 | I32: 0 | J32: 19 | K32: 39 | L32: 0 | M32: 0 | N32: 20 | O32: 0 | P32: 0 | Q32: 0 | R32: 0 | S32: 19 | T32: 0 | U32: 0 | V32: 0 | W32: 0 | X32: 0 | Y32: 0 | Z32: 0 | AA32: 0 | AB32: 0 | AC32: Ok
A33: INFINITO SC687 5 50X100ML BOT IN | B33: 100 | C33: 0 | D33: 0 | E33: 100 | F33: 0 | G33: 0 | H33: 0 | I33: 0 | J33: 0 | K33: 100 | L33: 0 | M33: 0 | N33: 100 | O33: 0 | P33: 0 | Q33: 0 | R33: 0 | S33: 0 | T33: 0 | U33: 0 | V33: 0 | W33: 0 | X33: 0 | Y33: 0 | Z33: 0 | AA33: 0 | AB33: 0 | AC33: Ok
A34: JUMP WG80 160X(10X2GR) BAG IN | B34: 6232 | C34: 0 | D34: 0 | E34: 702 | F34: 0 | G34: 0 | H34: 0 | I34: 0 | J34: 5530 | K34: 6232 | L34: 0 | M34: 0 | N34: 702 | O34: 0 | P34: 0 | Q34: 0 | R34: 0 | S34: 5530 | T34: 0 | U34: 0 | V34: 0 | W34: 0 | X34: 0 | Y34: 0 | Z34: 0 | AA34: 0 | AB34: 0 | AC34: Ok
A35: LARVIN (T) WP75 20X250GR BAG IN | B35: 47 | C35: 0 | D35: 0 | E35: 0 | F35: 0 | G35: 0 | H35: 0 | I35: 0 | J35: 47 | K35: 47 | L35: 0 | M35: 0 | N35: 0 | O35: 0 | P35: 0 | Q35: 0 | R35: 0 | S35: 47 | T35: 0 | U35: 0 | V35: 0 | W35: 0 | X35: 0 | Y35: 0 | Z35: 0 | AA35: 0 | AB35: 0 | AC35: Ok
A36: LARVIN (T) WP75 20X500GR BAG IN | B36: 34 | C36: 0 | D36: 0 | E36: 0 | F36: 0 | G36: 0 | H36: 0 | I36: 0 | J36: 34 | K36: 34 | L36: 0 | M36: 0 | N36: 0 | O36: 0 | P36: 0 | Q36: 0 | R36: 0 | S36: 34 | T36: 0 | U36: 0 | V36: 0 | W36: 0 | X36: 0 | Y36: 0 | Z36: 0 | AA36: 0 | AB36: 0 | AC36: Ok
A37: LARVIN (T) WP75 40X100GR BAG IN | B37: 20 | C37: 0 | D37: 0 | E37: 0 | F37: 0 | G37: 0 | H37: 0 | I37: 0 | J37: 20 | K37: 20 | L37: 0 | M37: 0 | N37: 0 | O37: 0 | P37: 0 | Q37: 0 | R37: 0 | S37: 20 | T37: 0 | U37: 0 | V37: 0 | W37: 0 | X37: 0 | Y37: 0 | Z37: 0 | AA37: 0 | AB37: 0 | AC37: Ok
A38: LAUDIS SC630 10X57.5ML BOT IN | B38: 7 | C38: 0 | D38: 0 | E38: 0 | F38: 0 | G38: 0 | H38: 0 | I38: 0 | J38: 7 | K38: 7 | L38: 0 | M38: 0 | N38: 0 | O38: 0 | P38: 0 | Q38: 0 | R38: 0 | S38: 7 | T38: 0 | U38: 0 | V38: 0 | W38: 0 | X38: 0 | Y38: 0 | Z38: 0 | AA38: 0 | AB38: 0 | AC38: Ok
A39: LAUDIS SC630 3X230ML BOT IN | B39: 3 | C39: 0 | D39: 0 | E39: 0 | F39: 0 | G39: 0 | H39: 0 | I39: 0 | J39: 3 | K39: 3 | L39: 0 | M39: 0 | N39: 0 | O39: 0 | P39: 0 | Q39: 0 | R39: 0 | S39: 3 | T39: 0 | U39: 0 | V39: 0 | W39: 0 | X39: 0 | Y39: 0 | Z39: 0 | AA39: 0 | AB39: 0 | AC39: Ok
A40: LAUDIS SC630 8X115ML BOT IN | B40: 24 | C40: 0 | D40: 0 | E40: 0 | F40: 0 | G40: 0 | H40: 0 | I40: 0 | J40: 24 | K40: 24 | L40: 0 | M40: 0 | N40: 0 | O40: 0 | P40: 0 | Q40: 0 | R40: 0 | S40: 24 | T40: 0 | U40: 0 | V40: 0 | W40: 0 | X40: 0 | Y40: 0 | Z40: 0 | AA40: 0 | AB40: 0 | AC40: Ok
A41: LESENTA WG80 100X40GR BAG IN | B41: 94 | C41: 0 | D41: 0 | E41: 3 | F41: 0 | G41: 0 | H41: 0 | I41: 0 | J41: 91 | K41: 94 | L41: 0 | M41: 0 | N41: 3 | O41: 0 | P41: 0 | Q41: 0 | R41: 0 | S41: 91 | T41: 0 | U41: 0 | V41: 0 | W41: 0 | X41: 0 | Y41: 0 | Z41: 0 | AA41: 0 | AB41: 0 | AC41: Ok
A42: LUNA EXPERIENCE SC400 40X250ML BOT IN | B42: 348 | C42: 0 | D42: 0 | E42: 126 | F42: 0 | G42: 0 | H42: 0 | I42: 0 | J42: 222 | K42: 348 | L42: 0 | M42: 0 | N42: 126 | O42: 0 | P42: 0 | Q42: 0 | R42: 0 | S42: 222 | T42: 0 | U42: 0 | V42: 0 | W42: 0 | X42: 0 | Y42: 0 | Z42: 0 | AA42: 0 | AB42: 0 | AC42: Ok
A43: LUNA EXPERIENCE SC400 50X100ML BOT IN | B43: 300 | C43: 0 | D43: 0 | E43: 200 | F43: 0 | G43: 0 | H43: 0 | I43: 0 | J43: 100 | K43: 300 | L43: 0 | M43: 0 | N43: 200 | O43: 0 | P43: 0 | Q43: 0 | R43: 0 | S43: 100 | T43: 0 | U43: 0 | V43: 0 | W43: 0 | X43: 0 | Y43: 0 | Z43: 0 | AA43: 0 | AB43: 0 | AC43: Ok
A44: MILLET HYBRID 9001 20X1.5 BAG IN | B44: 228 | C44: 0 | D44: 0 | E44: 0 | F44: 0 | G44: 0 | H44: 0 | I44: 228 | J44: 0 | K44: 228 | L44: 0 | M44: 0 | N44: 228 | O44: 0 | P44: 0 | Q44: 0 | R44: 0 | S44: 0 | T44: 0 | U44: 0 | V44: 0 | W44: -228 | X44: 0 | Y44: 0 | Z44: 0 | AA44: 228 | AB44: 0 | AC44: Ok
A45: MILLET HYBRID 9444 20X1.5KG BAG IN | B45: 4 | C45: 0 | D45: 0 | E45: 0 | F45: 0 | G45: 0 | H45: 0 | I45: 4 | J45: 0 | K45: 4 | L45: 0 | M45: 0 | N45: 4 | O45: 0 | P45: 0 | Q45: 0 | R45: 0 | S45: 0 | T45: 0 | U45: 0 | V45: 0 | W45: -4 | X45: 0 | Y45: 0 | Z45: 0 | AA45: 4 | AB45: 0 | AC45: Ok
A46: MILLET HYBRID 9450 20X1 5KG BAG IN | B46: -15 | C46: 0 | D46: 0 | E46: 0 | F46: 0 | G46: 0 | H46: 0 | I46: -228 | J46: 213 | K46: -15 | L46: 228 | M46: 0 | N46: 0 | O46: 0 | P46: 0 | Q46: 0 | R46: 0 | S46: 213 | T46: 0 | U46: -228 | V46: 0 | W46: 0 | X46: 0 | Y46: 0 | Z46: 0 | AA46: -228 | AB46: 0 | AC46: Ok
A47: MOVENTO ENERGY SC240 40X250ML BOT IN | B47: 55 | C47: 0 | D47: 0 | E47: 49 | F47: 0 | G47: 0 | H47: 0 | I47: 0 | J47: 6 | K47: 55 | L47: 0 | M47: 0 | N47: 49 | O47: 0 | P47: 0 | Q47: 0 | R47: 0 | S47: 6 | T47: 0 | U47: 0 | V47: 0 | W47: 0 | X47: 0 | Y47: 0 | Z47: 0 | AA47: 0 | AB47: 0 | AC47: Ok
A48: MOVENTO ENERGY SC240 50X100ML BOT IN | B48: 50 | C48: 0 | D48: 0 | E48: 50 | F48: 0 | G48: 0 | H48: 0 | I48: 0 | J48: 0 | K48: 50 | L48: 0 | M48: 0 | N48: 50 | O48: 0 | P48: 0 | Q48: 0 | R48: 0 | S48: 0 | T48: 0 | U48: 0 | V48: 0 | W48: 0 | X48: 0 | Y48: 0 | Z48: 0 | AA48: 0 | AB48: 0 | AC48: Ok
A49: MUSTARD 5222 30X1KG BAG IN | B49: 3 | C49: 0 | D49: 0 | E49: 0 | F49: 0 | G49: 0 | H49: 0 | I49: 3 | J49: 0 | K49: 3 | L49: 0 | M49: 0 | N49: 3 | O49: 0 | P49: 0 | Q49: 0 | R49: 0 | S49: 0 | T49: 0 | U49: 0 | V49: 0 | W49: -3 | X49: 0 | Y49: 0 | Z49: 0 | AA49: 3 | AB49: 0 | AC49: Ok
A50: NATIVO WG75 100X50GR BAG IN | B50: 248 | C50: 0 | D50: 0 | E50: 151 | F50: 0 | G50: 0 | H50: 0 | I50: 0 | J50: 97 | K50: 248 | L50: 0 | M50: 0 | N50: 151 | O50: 0 | P50: 0 | Q50: 0 | R50: 0 | S50: 97 | T50: 0 | U50: 0 | V50: 0 | W50: 0 | X50: 0 | Y50: 0 | Z50: 0 | AA50: 0 | AB50: 0 | AC50: Ok
A51: NATIVO WG75 20X500GR BAG IN | B51: 8 | C51: 0 | D51: 0 | E51: 0 | F51: 0 | G51: 0 | H51: 0 | I51: 0 | J51: 8 | K51: 8 | L51: 0 | M51: 0 | N51: 0 | O51: 0 | P51: 0 | Q51: 0 | R51: 0 | S51: 8 | T51: 0 | U51: 0 | V51: 0 | W51: 0 | X51: 0 | Y51: 0 | Z51: 0 | AA51: 0 | AB51: 0 | AC51: Ok
A52: NATIVO WG75 40X250GR BAG IN | B52: 130 | C52: 0 | D52: 0 | E52: 88 | F52: 0 | G52: 0 | H52: 0 | I52: 0 | J52: 42 | K52: 130 | L52: 0 | M52: 0 | N52: 88 | O52: 0 | P52: 0 | Q52: 0 | R52: 0 | S52: 42 | T52: 0 | U52: 0 | V52: 0 | W52: 0 | X52: 0 | Y52: 0 | Z52: 0 | AA52: 0 | AB52: 0 | AC52: Ok
A53: NATIVO WG75 50X100GR BAG IN | B53: 184 | C53: 0 | D53: 0 | E53: 184 | F53: 0 | G53: 0 | H53: 0 | I53: 0 | J53: 0 | K53: 184 | L53: 0 | M53: 0 | N53: 184 | O53: 0 | P53: 0 | Q53: 0 | R53: 0 | S53: 0 | T53: 0 | U53: 0 | V53: 0 | W53: 0 | X53: 0 | Y53: 0 | Z53: 0 | AA53: 0 | AB53: 0 | AC53: Ok
A54: OBERON (T) SC240 40X200ML BOT IN | B54: 154 | C54: 0 | D54: 0 | E54: 70 | F54: 0 | G54: 0 | H54: 0 | I54: 0 | J54: 84 | K54: 154 | L54: 0 | M54: 0 | N54: 70 | O54: 0 | P54: 0 | Q54: 0 | R54: 0 | S54: 84 | T54: 0 | U54: 0 | V54: 0 | W54: 0 | X54: 0 | Y54: 0 | Z54: 0 | AA54: 0 | AB54: 0 | AC54: Ok
A55: OBERON (T) SC240 50X100ML BOT IN | B55: 125 | C55: 0 | D55: 0 | E55: 7 | F55: 0 | G55: 0 | H55: 0 | I55: 0 | J55: 118 | K55: 125 | L55: 0 | M55: 0 | N55: 7 | O55: 0 | P55: 0 | Q55: 0 | R55: 0 | S55: 118 | T55: 0 | U55: 0 | V55: 0 | W55: 0 | X55: 0 | Y55: 0 | Z55: 0 | AA55: 0 | AB55: 0 | AC55: Ok
A56: PLANOFIX SL4 5 50X100ML BOT IN | B56: 25.1 | C56: 0 | D56: 0 | E56: 18.2 | F56: 0.1 | G56: 0 | H56: 0 | I56: 0 | J56: 7 | K56: 25.1 | L56: 0 | M56: 0 | N56: 18.1 | O56: 0 | P56: 0 | Q56: 0 | R56: 0 | S56: 7 | T56: 0 | U56: 0 | V56: 0 | W56: 0.1 | X56: 0.1 | Y56: 0 | Z56: 0 | AA56: 0 | AB56: 0 | AC56: Ok
A57: RAFT EC60 10X1L BOT IN | B57: 5 | C57: 0 | D57: 0 | E57: 0 | F57: 0 | G57: 0 | H57: 0 | I57: 0 | J57: 5 | K57: 5 | L57: 0 | M57: 0 | N57: 0 | O57: 0 | P57: 0 | Q57: 0 | R57: 0 | S57: 5 | T57: 0 | U57: 0 | V57: 0 | W57: 0 | X57: 0 | Y57: 0 | Z57: 0 | AA57: 0 | AB57: 0 | AC57: Ok
A58: RAFT EC60 40X250ML BOT IN | B58: 15 | C58: 0 | D58: 0 | E58: 0 | F58: 0 | G58: 0 | H58: 0 | I58: 0 | J58: 15 | K58: 15 | L58: 0 | M58: 0 | N58: 0 | O58: 0 | P58: 0 | Q58: 0 | R58: 0 | S58: 15 | T58: 0 | U58: 0 | V58: 0 | W58: 0 | X58: 0 | Y58: 0 | Z58: 0 | AA58: 0 | AB58: 0 | AC58: Ok
A59: REGENT (T) SC50 20X250ML BOT IN | B59: 31 | C59: 0 | D59: 0 | E59: 29 | F59: 0 | G59: 0 | H59: 0 | I59: 0 | J59: 2 | K59: 31 | L59: 0 | M59: 0 | N59: 29 | O59: 0 | P59: 0 | Q59: 0 | R59: 0 | S59: 2 | T59: 0 | U59: 0 | V59: 0 | W59: 0 | X59: 0 | Y59: 0 | Z59: 0 | AA59: 0 | AB59: 0 | AC59: Ok
A60: REGENT (T) SC50 20X500ML BOT IN | B60: 216 | C60: 0 | D60: 0 | E60: 60 | F60: 0 | G60: 0 | H60: 0 | I60: 0 | J60: 156 | K60: 216 | L60: 0 | M60: 0 | N60: 60 | O60: 0 | P60: 0 | Q60: 0 | R60: 0 | S60: 156 | T60: 0 | U60: 0 | V60: 0 | W60: 0 | X60: 0 | Y60: 0 | Z60: 0 | AA60: 0 | AB60: 0 | AC60: Ok
A61: REGENT (T) SC50 50X100ML BOT IN | B61: -407 | C61: 0 | D61: 0 | E61: 14 | F61: 0 | G61: 0 | H61: 0 | I61: 0 | J61: -421 | K61: -407 | L61: 0 | M61: 0 | N61: 14 | O61: 0 | P61: 0 | Q61: 0 | R61: 0 | S61: -421 | T61: 0 | U61: 0 | V61: 0 | W61: 0 | X61: 0 | Y61: 0 | Z61: 0 | AA61: 0 | AB61: 0 | AC61: Ok
A62: REGENT GR0 3 20X1KG BAG IN | B62: 487 | C62: 0 | D62: 0 | E62: 51 | F62: 0 | G62: 0 | H62: 0 | I62: 0 | J62: 436 | K62: 487 | L62: 0 | M62: 0 | N62: 51 | O62: 0 | P62: 0 | Q62: 0 | R62: 0 | S62: 436 | T62: 0 | U62: 0 | V62: 0 | W62: 0 | X62: 0 | Y62: 0 | Z62: 0 | AA62: 0 | AB62: 0 | AC62: Ok
A63: REGENT GR0 3 4X5KG BAG IN | B63: 163 | C63: 0 | D63: 0 | E63: 22 | F63: 0 | G63: 0 | H63: 0 | I63: 0 | J63: 141 | K63: 163 | L63: 0 | M63: 0 | N63: 22 | O63: 0 | P63: 0 | Q63: 0 | R63: 0 | S63: 141 | T63: 0 | U63: 0 | V63: 0 | W63: 0 | X63: 0 | Y63: 0 | Z63: 0 | AA63: 0 | AB63: 0 | AC63: Ok
A64: SOLOMON OD300 40X250ML BOT IN | B64: 24 | C64: 0 | D64: 0 | E64: 1 | F64: 0 | G64: 0 | H64: 0 | I64: 0 | J64: 23 | K64: 24 | L64: 0 | M64: 0 | N64: 1 | O64: 0 | P64: 0 | Q64: 0 | R64: 0 | S64: 23 | T64: 0 | U64: 0 | V64: 0 | W64: 0 | X64: 0 | Y64: 0 | Z64: 0 | AA64: 0 | AB64: 0 | AC64: Ok
A65: SOLOMON OD300 50X100ML BOT IN | B65: 26 | C65: 0 | D65: 0 | E65: 18 | F65: 0 | G65: 0 | H65: 0 | I65: 0 | J65: 8 | K65: 26 | L65: 0 | M65: 0 | N65: 18 | O65: 0 | P65: 0 | Q65: 0 | R65: 0 | S65: 8 | T65: 0 | U65: 0 | V65: 0 | W65: 0 | X65: 0 | Y65: 0 | Z65: 0 | AA65: 0 | AB65: 0 | AC65: Ok
A66: VELUM PRIME SC400 20X500ML BOT IN | B66: 140 | C66: 0 | D66: 0 | E66: 0 | F66: 0 | G66: 0 | H66: 0 | I66: 0 | J66: 140 | K66: 140 | L66: 0 | M66: 0 | N66: 0 | O66: 0 | P66: 0 | Q66: 0 | R66: 0 | S66: 140 | T66: 0 | U66: 0 | V66: 0 | W66: 0 | X66: 0 | Y66: 0 | Z66: 0 | AA66: 0 | AB66: 0 | AC66: Ok
A67: VELUM PRIME SC400 40X250ML BOT IN | B67: 62 | C67: 0 | D67: 0 | E67: 7 | F67: 40 | G67: 0 | H67: 0 | I67: 0 | J67: 95 | K67: 62 | L67: 0 | M67: 0 | N67: -33 | O67: 0 | P67: 0 | Q67: 0 | R67: 0 | S67: 95 | T67: 0 | U67: 0 | V67: 0 | W67: 40 | X67: 40 | Y67: 0 | Z67: 0 | AA67: 0 | AB67: 0 | AC67: Ok
A68: WHIPSUPER (T) EC90 40X250ML BOT IN | B68: 25 | C68: 0 | D68: 0 | E68: 0 | F68: 0 | G68: 0 | H68: 0 | I68: 0 | J68: 25 | K68: 25 | L68: 0 | M68: 0 | N68: 0 | O68: 0 | P68: 0 | Q68: 0 | R68: 0 | S68: 25 | T68: 0 | U68: 0 | V68: 0 | W68: 0 | X68: 0 | Y68: 0 | Z68: 0 | AA68: 0 | AB68: 0 | AC68: Ok
A69: SURPASS 7172 BG2 20X450GR BAG IN | B69: 4 | C69: 0 | D69: 0 | E69: 0 | F69: 0 | G69: 0 | H69: 0 | I69: 4 | J69: 0 | K69: 4 | L69: 0 | M69: 0 | N69: 4 | O69: 0 | P69: 0 | Q69: 0 | R69: 0 | S69: 0 | T69: 0 | U69: 0 | V69: 0 | W69: -4 | X69: 0 | Y69: 0 | Z69: 0 | AA69: 4 | AB69: 0 | AC69: Ok
A70: MUSTARD PA 5210 (LOC) 30X1KG BAG IN | B70: 91 | C70: 0 | D70: 0 | E70: 0 | F70: 0 | G70: 0 | H70: 0 | I70: 0 | J70: 91 | K70: 91 | L70: 0 | M70: 0 | N70: 0 | O70: 0 | P70: 0 | Q70: 0 | R70: 0 | S70: 91 | T70: 0 | U70: 0 | V70: 0 | W70: 0 | X70: 0 | Y70: 0 | Z70: 0 | AA70: 0 | AB70: 0 | AC70: Ok
A71: REGENT (T) SC50 10X1L BOT IN | B71: 4 | C71: 0 | D71: 0 | E71: 0 | F71: 0 | G71: 0 | H71: 0 | I71: 0 | J71: 4 | K71: 4 | L71: 0 | M71: 0 | N71: 0 | O71: 0 | P71: 0 | Q71: 0 | R71: 0 | S71: 4 | T71: 0 | U71: 0 | V71: 0 | W71: 0 | X71: 0 | Y71: 0 | Z71: 0 | AA71: 0 | AB71: 0 | AC71: Ok
A72: ALIETTE WP80 10X1KG BAG IN | B72: 0 | C72: 0 | D72: 0 | E72: 0 | F72: 0 | G72: 0 | H72: 0 | I72: 0 | J72: 0 | K72: 0 | L72: 0 | M72: 0 | N72: 0 | O72: 0 | P72: 0 | Q72: 0 | R72: 0 | S72: 0 | T72: 0 | U72: 0 | V72: 0 | W72: 0 | X72: 0 | Y72: 0 | Z72: 0 | AA72: 0 | AB72: 0 | AC72: Ok
A73: ANTRACOL (T) WP70 10X1KG BAG IN | B73: 0 | C73: 0 | D73: 0 | E73: 0 | F73: 0 | G73: 0 | H73: 0 | I73: 0 | J73: 0 | K73: 0 | L73: 0 | M73: 0 | N73: 0 | O73: 0 | P73: 0 | Q73: 0 | R73: 0 | S73: 0 | T73: 0 | U73: 0 | V73: 0 | W73: 0 | X73: 0 | Y73: 0 | Z73: 0 | AA73: 0 | AB73: 0 | AC73: Ok
A74: FAME (T) SC480 10X(20X10ML) BOT IN | B74: 0 | C74: 0 | D74: 0 | E74: 0 | F74: 0 | G74: 0 | H74: 0 | I74: 0 | J74: 0 | K74: 0 | L74: 0 | M74: 0 | N74: 0 | O74: 0 | P74: 0 | Q74: 0 | R74: 0 | S74: 0 | T74: 0 | U74: 0 | V74: 0 | W74: 0 | X74: 0 | Y74: 0 | Z74: 0 | AA74: 0 | AB74: 0 | AC74: Ok
A75: FOLICUR (T) EC250 10X1L BOT IN | B75: 0 | C75: 0 | D75: 0 | E75: 0 | F75: 0 | G75: 0 | H75: 0 | I75: 0 | J75: 0 | K75: 0 | L75: 0 | M75: 0 | N75: 0 | O75: 0 | P75: 0 | Q75: 0 | R75: 0 | S75: 0 | T75: 0 | U75: 0 | V75: 0 | W75: 0 | X75: 0 | Y75: 0 | Z75: 0 | AA75: 0 | AB75: 0 | AC75: Ok
A76: FOOST WP50 20X250G BAG IN | B76: 0 | C76: 0 | D76: 0 | E76: 0 | F76: 0 | G76: 0 | H76: 0 | I76: 0 | J76: 0 | K76: 0 | L76: 0 | M76: 0 | N76: 0 | O76: 0 | P76: 0 | Q76: 0 | R76: 0 | S76: 0 | T76: 0 | U76: 0 | V76: 0 | W76: 0 | X76: 0 | Y76: 0 | Z76: 0 | AA76: 0 | AB76: 0 | AC76: Ok
A77: MILLET HYBRID 9450 6X4.5KG BAG IN | B77: 0 | C77: 0 | D77: 0 | E77: 0 | F77: 0 | G77: 0 | H77: 0 | I77: 0 | J77: 0 | K77: 0 | L77: 0 | M77: 0 | N77: 0 | O77: 0 | P77: 0 | Q77: 0 | R77: 0 | S77: 0 | T77: 0 | U77: 0 | V77: 0 | W77: 0 | X77: 0 | Y77: 0 | Z77: 0 | AA77: 0 | AB77: 0 | AC77: Ok
A78: MILLET PA 9180 (LOC) 20X1.50KG BAG IN | B78: 0 | C78: 0 | D78: 0 | E78: 0 | F78: 0 | G78: 0 | H78: 0 | I78: 0 | J78: 0 | K78: 0 | L78: 0 | M78: 0 | N78: 0 | O78: 0 | P78: 0 | Q78: 0 | R78: 0 | S78: 0 | T78: 0 | U78: 0 | V78: 0 | W78: 0 | X78: 0 | Y78: 0 | Z78: 0 | AA78: 0 | AB78: 0 | AC78: Ok
A79: NATIVO WG75 10X1KG BAG IN | B79: 0 | C79: 0 | D79: 0 | E79: 0 | F79: 0 | G79: 0 | H79: 0 | I79: 0 | J79: 0 | K79: 0 | L79: 0 | M79: 0 | N79: 0 | O79: 0 | P79: 0 | Q79: 0 | R79: 0 | S79: 0 | T79: 0 | U79: 0 | V79: 0 | W79: 0 | X79: 0 | Y79: 0 | Z79: 0 | AA79: 0 | AB79: 0 | AC79: Ok
A80: RAFT EC60 20X500ML BOT IN | B80: 0 | C80: 0 | D80: 0 | E80: 0 | F80: 0 | G80: 0 | H80: 0 | I80: 0 | J80: 0 | K80: 0 | L80: 0 | M80: 0 | N80: 0 | O80: 0 | P80: 0 | Q80: 0 | R80: 0 | S80: 0 | T80: 0 | U80: 0 | V80: 0 | W80: 0 | X80: 0 | Y80: 0 | Z80: 0 | AA80: 0 | AB80: 0 | AC80: Ok
A81: SENCOR WP70 60X100GR BAG IN | B81: 0 | C81: 0 | D81: 0 | E81: 0 | F81: 0 | G81: 0 | H81: 0 | I81: 0 | J81: 0 | K81: 0 | L81: 0 | M81: 0 | N81: 0 | O81: 0 | P81: 0 | Q81: 0 | R81: 0 | S81: 0 | T81: 0 | U81: 0 | V81: 0 | W81: 0 | X81: 0 | Y81: 0 | Z81: 0 | AA81: 0 | AB81: 0 | AC81: Ok
A82: SPINTOR SC495 20X75ML BOT IN | B82: 0 | C82: 0 | D82: 0 | E82: 0 | F82: 0 | G82: 0 | H82: 0 | I82: 0 | J82: 0 | K82: 0 | L82: 0 | M82: 0 | N82: 0 | O82: 0 | P82: 0 | Q82: 0 | R82: 0 | S82: 0 | T82: 0 | U82: 0 | V82: 0 | W82: 0 | X82: 0 | Y82: 0 | Z82: 0 | AA82: 0 | AB82: 0 | AC82: Ok
A83: SUNRICE WG15 100X50GR BOT IN | B83: 0 | C83: 0 | D83: 0 | E83: 0 | F83: 0 | G83: 0 | H83: 0 | I83: 0 | J83: 0 | K83: 0 | L83: 0 | M83: 0 | N83: 0 | O83: 0 | P83: 0 | Q83: 0 | R83: 0 | S83: 0 | T83: 0 | U83: 0 | V83: 0 | W83: 0 | X83: 0 | Y83: 0 | Z83: 0 | AA83: 0 | AB83: 0 | AC83: Ok
A84: SURPASS 7007 BG2 20X450GR BOX IN | B84: 0 | C84: 0 | D84: 0 | E84: 0 | F84: 0 | G84: 0 | H84: 0 | I84: 0 | J84: 0 | K84: 0 | L84: 0 | M84: 0 | N84: 0 | O84: 0 | P84: 0 | Q84: 0 | R84: 0 | S84: 0 | T84: 0 | U84: 0 | V84: 0 | W84: 0 | X84: 0 | Y84: 0 | Z84: 0 | AA84: 0 | AB84: 0 | AC84: Ok
A85: Total | B85: 18075.1 | C85: 40 | D85: 2706 | E85: 3598.95 | F85: 94.1 | G85: 0 | H85: 0 | I85: 11 | J85: 11893.25 | K85: 18145.1 | L85: -2438 | M85: 0 | N85: 3743.85 | O85: 0 | P85: 0 | Q85: 0 | R85: 0 | S85: 11963.25 | T85: 0 | U85: 2478 | V85: 2706 | W85: -144.9 | X85: 94.1 | Y85: 0 | Z85: 0 | AA85: 11 | AB85: 0
